Workbook

Sheet 綜合報表
A1: 000858 | B1: << 請輸入欲查詢的證券代碼，並按 [更新版面] 更新資料 | W1: =A2 -> 000858 五糧液 | AF1: 單季(單半年)損益 (RMB) | AP1: 累計財報(RMB)
A2: =基本資料!A1 -> 000858 五糧液 | C2: 上市日期 | D2: =TEXT(基本資料!G3,"YYYY/MM/DD") -> 1998/04/27 | F2: 股價相關 | G2: =股價!I2 -> 2014-05-30 | W2: 股權結構 | Y2: =TEXT(股權結構!C2,"YYYY/MM") -> 2012/12 | AF2: =IF(IS!$C$3="Y","合併單季損益","非合併單季損益")&" ("&IS!$C$4&")" -> 合併單季損益 (RMB) | AI2: =TEXT(IS!C$2,"YYYY/MM") -> 2012/12 | AJ2: =TEXT(IS!D$2,"YYYY/MM") -> 2013/03 | AK2: =TEXT(IS!E$2,"YYYY/MM") -> 2013/06 | AL2: =TEXT(IS!F$2,"YYYY/MM") -> 2013/09 | AM2: =TEXT(IS!G$2,"YYYY/MM") -> 2013/12 | AN2: =TEXT(IS!H$2,"YYYY/MM") -> 2014/03 | AP2: =IF(BS!$B$3="Y","合併累計","非合併累計")&" ("&BS!$B$4&")" -> 合併累計 (RMB) | AQ2: =TEXT(BS!B$2,"YYYY/MM") -> 2011/12 | AR2: =TEXT(BS!C$2,"YYYY/MM") -> 2012/12 | AS2: =TEXT(BS!D$2,"YYYY/MM") -> 2013/12 | AT2: =IF(BS!E2=" "," ",TEXT(BS!E$2,"YYYY/MM")) -> 2014/03
A3: 公司全稱 | B3: =基本資料!B3 -> 宜賓五糧液股份有限公司 | F3: 每股盈餘 (元) | G3: =股價!$I$41 -> 0.69 | H3: 收盤價 | I3: =股價!$I$5 -> 16.78 | J3: 總股本 | K3: =股價!$I$10 -> 3795967 | W3: =股權結構!E10 -> 總股數 | Y3: =股權結構!F10 -> 3795967 | AF3: 單季Q / 半年H / 整年Y | AI3: =IF(IS!C1-IS!B1<100,"Q",(IF(IS!C1-IS!B1>300,"Y","H"))) -> Q | AJ3: =IF(IS!D1-IS!C1<100,"Q",(IF(IS!D1-IS!C1>300,"Y","H"))) -> Q | AK3: =IF(IS!E1-IS!D1<100,"Q",(IF(IS!E1-IS!D1>300,"Y","H"))) -> Q | AL3: =IF(IS!F1-IS!E1<100,"Q",(IF(IS!F1-IS!E1>300,"Y","H"))) -> Q | AM3: =IF(IS!G1-IS!F1<100,"Q",(IF(IS!G1-IS!F1>300,"Y","H"))) -> Q | AN3: =IF(IS!H1-IS!G1<100,"Q",(IF(IS!H1-IS!G1>300,"Y","H"))) -> Q | AP3: 資產負債表
A4: 市場別 | B4: =基本資料!A3 -> 深圳 | C4: 類別 | D4: =IF(B4="上海",IF(LEFT(A2,2)="60","A股","B股"),IF(LEFT(A2,2)="00","A股","B股")) -> A股 | F4: 每股淨值 (A) | G4: =股價!$I$42 -> 10.2 | H4: 報酬率 | I4: =股價!$I$6 -> -0.0596 | J4: 總市值 | K4: =股價!$I$11 -> 63696326 | W4: =MID(股權結構!E3,4,99) -> 公眾股 | Y4: =IF(股權結構!F3=" "," ",股權結構!F3) -> 3795542 | AF4: =IF(IS!$A5="","",IS!$A5) -> 營業總收入 | AI4: =IF(IS!$C5="","",IS!$C5) -> 6074443 | AJ4: =IF(IS!$D5="","",IS!$D5) -> 8675800 | AK4: =IF(IS!$E5="","",IS!$E5) -> 6844078 | AL4: =IF(IS!$F5="","",IS!$F5) -> 3645959 | AM4: =IF(IS!$G5="","",IS!$G5) -> 5552752 | AN4: =IF(IS!$H5="","",IS!$H5) -> 6719852 | AP4: =BS!A5 -> 流動資產 | AQ4: =IF(BS!B5="","",BS!B5) -> 29713141 | AR4: =IF(BS!C5="","",BS!C5) -> 37922333 | AS4: =IF(BS!D5="","",BS!D5) -> 36942220 | AT4: =IF(BS!E5="","",BS!E5) -> 39574777
A5: =基本資料!E2 -> 董事長 | B5: =基本資料!E3 -> 劉中國 | C5: =基本資料!J2 -> H股 上市碼 | D5: =IF(基本資料!J3=""," ",基本資料!J3&" HK") ->  | F5: P/E | G5: =股價!$I$3 -> 8.76 | H5: 成交量 | I5: =股價!$I$7 -> 4577 | J5: 60日最高 | K5: =股價!$I$19 -> 18.17 | W5: =MID(股權結構!E4,4,99) -> 可上市法人股 | Y5: =IF(股權結構!F4=" "," ",股權結構!F4) -> 0 | AF5: =IF(IS!$A6="","",IS!$A6) -> 營業成本 | AI5: =IF(IS!$C6="","",IS!$C6) -> 1540103 | AJ5: =IF(IS!$D6="","",IS!$D6) -> 2033065 | AK5: =IF(IS!$E6="","",IS!$E6) -> 2343632 | AL5: =IF(IS!$F6="","",IS!$F6) -> 962754 | AM5: =IF(IS!$G6="","",IS!$G6) -> 1270960 | AN5: =IF(IS!$H6="","",IS!$H6) -> 1682005 | AP5: =BS!A6 -> 長期投資 | AQ5: =IF(BS!B6="","",BS!B6) -> 130875 | AR5: =IF(BS!C6="","",BS!C6) -> 120351 | AS5: =IF(BS!D6="","",BS!D6) -> 120577 | AT5: =IF(BS!E6="","",BS!E6) -> 840577
A6: =基本資料!F2 -> 總經理 | B6: =基本資料!F3 -> 陳林 | C6: 電話 | D6: =基本資料!D3 -> 86-831-3566858 | F6: P/B | G6: =股價!$I$4 -> 1.6 | H6: 成交值 | I6: =股價!$I$8 -> 77018 | J6: 60日最低 | K6: =股價!$I$20 -> 15.45 | W6: =MID(股權結構!E5,4,99) -> 境內上市外資股 | Y6: =IF(股權結構!F5=" "," ",股權結構!F5) -> 0 | AF6: =IF(IS!$A7="","",IS!$A7) -> 業務稅金及附加 | AI6: =IF(IS!$C7="","",IS!$C7) -> 447677 | AJ6: =IF(IS!$D7="","",IS!$D7) -> 587146 | AK6: =IF(IS!$E7="","",IS!$E7) -> 510423 | AL6: =IF(IS!$F7="","",IS!$F7) -> 261577 | AM6: =IF(IS!$G7="","",IS!$G7) -> 489885 | AN6: =IF(IS!$H7="","",IS!$H7) -> 448818 | AP6: =BS!A7 -> 固定資產 | AQ6: =IF(BS!B7="","",BS!B7) -> 6697166 | AR6: =IF(BS!C7="","",BS!C7) -> 6353691 | AS6: =IF(BS!D7="","",BS!D7) -> 6130036 | AT6: =IF(BS!E7="","",BS!E7) -> 6043033
A7: 辦公地址 | B7: =基本資料!C3 -> 四川省宜賓市翠屏區岷江西路150 號 | F7: Beta值(一個月) | G7: =IF(股價!$I$12 ="",股價!$J$12," ") ->  | H7: 券資比 | I7: =IF(股價!$I$9 ="",股價!$J$9," ") ->  | W7: =MID(股權結構!E6,4,99) -> 境外上市外資股 | Y7: =IF(股權結構!F6=" "," ",股權結構!F6) -> 0 | AF7: =IF(IS!$A8="","",IS!$A8) -> 銷售費用 | AI7: =IF(IS!$C8="","",IS!$C8) -> 654076 | AJ7: =IF(IS!$D8="","",IS!$D8) -> 504185 | AK7: =IF(IS!$E8="","",IS!$E8) -> 690857 | AL7: =IF(IS!$F8="","",IS!$F8) -> 356989 | AM7: =IF(IS!$G8="","",IS!$G8) -> 1830146 | AN7: =IF(IS!$H8="","",IS!$H8) -> 638102 | AP7: =BS!A8 -> 其他資產 | AQ7: =IF(BS!B8="","",BS!B8) -> 364659 | AR7: =IF(BS!C8="","",BS!C8) -> 851261 | AS7: =IF(BS!D8="","",BS!D8) -> 936669 | AT7: =IF(BS!E8="","",BS!E8) -> 858945
A8: 產業別 | B8: =IF(基本資料!I3<>"",基本資料!I3,"") -> C 製造業 | W8: =MID(股權結構!E7,4,99) -> 其它流通股 | Y8: =IF(股權結構!F7=" "," ",股權結構!F7) -> 0 | AF8: =IF(IS!$A9="","",IS!$A9) -> 管理費用 | AI8: =IF(IS!$C9="","",IS!$C9) -> 600195 | AJ8: =IF(IS!$D9="","",IS!$D9) -> 577974 | AK8: =IF(IS!$E9="","",IS!$E9) -> 507720 | AL8: =IF(IS!$F9="","",IS!$F9) -> 435537 | AM8: =IF(IS!$G9="","",IS!$G9) -> 742407 | AN8: =IF(IS!$H9="","",IS!$H9) -> 533716 | AP8: =BS!A9 -> 資產總額 | AQ8: =IF(BS!B9="","",BS!B9) -> 36905841 | AR8: =IF(BS!C9="","",BS!C9) -> 45247636 | AS8: =IF(BS!D9="","",BS!D9) -> 44129502 | AT8: =IF(BS!E9="","",BS!E9) -> 47317332
W9: =MID(股權結構!E8,4,99) -> 回購鎖定股份 | Y9: =IF(股權結構!F8=" "," ",股權結構!F8) -> 0 | AF9: =IF(IS!$A10="","",IS!$A10) -> 研發費用 | AI9: =IF(IS!$C10="","",IS!$C10) -> 0 | AJ9: =IF(IS!$D10="","",IS!$D10) -> 0 | AK9: =IF(IS!$E10="","",IS!$E10) -> 0 | AL9: =IF(IS!$F10="","",IS!$F10) -> 0 | AM9: =IF(IS!$G10="","",IS!$G10) -> 0 | AN9: =IF(IS!$H10="","",IS!$H10) -> 0 | AP9: =BS!A10 -> 流動負債 | AQ9: =IF(BS!B10="","",BS!B10) -> 13409431 | AR9: =IF(BS!C10="","",BS!C10) -> 13666976 | AS9: =IF(BS!D10="","",BS!D10) -> 7042604 | AT9: =IF(BS!E10="","",BS!E10) -> 7496845
W10: =MID(股權結構!E9,4,99) -> 未流通股 | Y10: =IF(股權結構!F9=" "," ",股權結構!F9) -> 425 | AF10: =IF(IS!$A11="","",IS!$A11) -> 財務費用 | AI10: =IF(IS!$C11="","",IS!$C11) -> -169257 | AJ10: =IF(IS!$D11="","",IS!$D11) -> -238664 | AK10: =IF(IS!$E11="","",IS!$E11) -> -233281 | AL10: =IF(IS!$F11="","",IS!$F11) -> -187459 | AM10: =IF(IS!$G11="","",IS!$G11) -> -167476 | AN10: =IF(IS!$H11="","",IS!$H11) -> -245116 | AP10: =BS!A11 -> 長期負債 | AQ10: =IF(BS!B11="","",BS!B11) -> 0 | AR10: =IF(BS!C11="","",BS!C11) -> 0 | AS10: =IF(BS!D11="","",BS!D11) -> 0 | AT10: =IF(BS!E11="","",BS!E11) -> 0
AF11: =IF(IS!$A12="","",IS!$A12) -> 其他費用 | AI11: =IF(IS!$C12="","",IS!$C12) -> 0 | AJ11: =IF(IS!$D12="","",IS!$D12) -> 0 | AK11: =IF(IS!$E12="","",IS!$E12) -> 0 | AL11: =IF(IS!$F12="","",IS!$F12) -> 0 | AM11: =IF(IS!$G12="","",IS!$G12) -> 0 | AN11: =IF(IS!$H12="","",IS!$H12) -> 0 | AP11: =BS!A12 -> 其他負債及準備 | AQ11: =IF(BS!B12="","",BS!B12) -> 49721 | AR11: =IF(BS!C12="","",BS!C12) -> 59589 | AS11: =IF(BS!D12="","",BS!D12) -> 67613 | AT11: =IF(BS!E12="","",BS!E12) -> 65654
W12: 融資券 | AF12: =IF(IS!$A13="","",IS!$A13) -> 資產減值損失 | AI12: =IF(IS!$C13="","",IS!$C13) -> 2697 | AJ12: =IF(IS!$D13="","",IS!$D13) -> 0 | AK12: =IF(IS!$E13="","",IS!$E13) -> 0 | AL12: =IF(IS!$F13="","",IS!$F13) -> 127 | AM12: =IF(IS!$G13="","",IS!$G13) -> 4880 | AN12: =IF(IS!$H13="","",IS!$H13) -> 0 | AP12: =BS!A13 -> 負債總額 | AQ12: =IF(BS!B13="","",BS!B13) -> 13459152 | AR12: =IF(BS!C13="","",BS!C13) -> 13726565 | AS12: =IF(BS!D13="","",BS!D13) -> 7110217 | AT12: =IF(BS!E13="","",BS!E13) -> 7562499
X13: 融資餘額(千) | Y13: 融資變動(%) | Z13: 融資成交% | AA13: 融券餘額(股) | AB13: 融券變動(%) | AC13: 融券成交% | AF13: =IF(IS!$A14="","",IS!$A14) -> 公允價值變動收益 | AI13: =IF(IS!$C14="","",IS!$C14) -> 3712 | AJ13: =IF(IS!$D14="","",IS!$D14) -> -1175 | AK13: =IF(IS!$E14="","",IS!$E14) -> -5896 | AL13: =IF(IS!$F14="","",IS!$F14) -> 0 | AM13: =IF(IS!$G14="","",IS!$G14) -> 0 | AN13: =IF(IS!$H14="","",IS!$H14) -> 0 | AP13: =BS!A14 -> 普通股股本 | AQ13: =IF(BS!B14="","",BS!B14) -> 3795967 | AR13: =IF(BS!C14="","",BS!C14) -> 3795967 | AS13: =IF(BS!D14="","",BS!D14) -> 3795967 | AT13: =IF(BS!E14="","",BS!E14) -> 3795967
W14: =IF(融資券!A3="","",融資券!A3) -> 2014-05-30 | X14: =IF(融資券!C3="","",融資券!C3/1000) -> 832804.441 | Y14: =IF(融資券!D3="","",融資券!D3) -> -1.242 | Z14: =IF(融資券!E3="","",融資券!E3) -> 12.8209 | AA14: =IF(融資券!F3="","",融資券!F3) -> 1553953 | AB14: =IF(融資券!G3="","",融資券!G3) -> -0.995 | AC14: =IF(融資券!H3="","",融資券!H3) -> 2.4498 | AF14: =IF(IS!$A15="","",IS!$A15) -> 投資收益 | AI14: =IF(IS!$C15="","",IS!$C15) -> 3925 | AJ14: =IF(IS!$D15="","",IS!$D15) -> 0 | AK14: =IF(IS!$E15="","",IS!$E15) -> -2465 | AL14: =IF(IS!$F15="","",IS!$F15) -> 0 | AM14: =IF(IS!$G15="","",IS!$G15) -> 6764 | AN14: =IF(IS!$H15="","",IS!$H15) -> 0 | AP14: =BS!A15 -> 特別股股本 | AQ14: =IF(BS!B15="","",BS!B15) -> 0 | AR14: =IF(BS!C15="","",BS!C15) -> 0 | AS14: =IF(BS!D15="","",BS!D15) -> 0 | AT14: =IF(BS!E15="","",BS!E15) -> 0
W15: =IF(融資券!A4="","",融資券!A4) -> 2014-05-29 | X15: =IF(融資券!C4="","",融資券!C4/1000) -> 843277.352 | Y15: =IF(融資券!D4="","",融資券!D4) -> -1.725 | Z15: =IF(融資券!E4="","",融資券!E4) -> 12.2009 | AA15: =IF(融資券!F4="","",融資券!F4) -> 1569572 | AB15: =IF(融資券!G4="","",融資券!G4) -> -2.633 | AC15: =IF(融資券!H4="","",融資券!H4) -> 3.5723 | AF15: =IF(IS!$A16="","",IS!$A16) -> 其中: 對聯營合營企業的投資收益 | AI15: =IF(IS!$C16="","",IS!$C16) -> 3925 | AJ15: =IF(IS!$D16="","",IS!$D16) -> 0 | AK15: =IF(IS!$E16="","",IS!$E16) -> -6198 | AL15: =IF(IS!$F16="","",IS!$F16) -> 0 | AM15: =IF(IS!$G16="","",IS!$G16) -> 6764 | AN15: =IF(IS!$H16="","",IS!$H16) -> 0 | AP15: =BS!A16 -> 預收股款 | AQ15: =IF(BS!B16="","",BS!B16) -> 0 | AR15: =IF(BS!C16="","",BS!C16) -> 0 | AS15: =IF(BS!D16="","",BS!D16) -> 0 | AT15: =IF(BS!E16="","",BS!E16) -> 0
W16: =IF(融資券!A5="","",融資券!A5) -> 2014-05-28 | X16: =IF(融資券!C5="","",融資券!C5/1000) -> 858082.334 | Y16: =IF(融資券!D5="","",融資券!D5) -> -1.297 | Z16: =IF(融資券!E5="","",融資券!E5) -> 10.7854 | AA16: =IF(融資券!F5="","",融資券!F5) -> 1612023 | AB16: =IF(融資券!G5="","",融資券!G5) -> -1.466 | AC16: =IF(融資券!H5="","",融資券!H5) -> 11.9547 | AF16: =IF(IS!$A17="","",IS!$A17) -> 期貨收益 | AI16: =IF(IS!$C17="","",IS!$C17) -> 0 | AJ16: =IF(IS!$D17="","",IS!$D17) -> 0 | AK16: =IF(IS!$E17="","",IS!$E17) -> 0 | AL16: =IF(IS!$F17="","",IS!$F17) -> 0 | AM16: =IF(IS!$G17="","",IS!$G17) -> 0 | AN16: =IF(IS!$H17="","",IS!$H17) -> 0 | AP16: =BS!A17 -> 增資準備 | AQ16: =IF(BS!B17="","",BS!B17) -> 0 | AR16: =IF(BS!C17="","",BS!C17) -> 0 | AS16: =IF(BS!D17="","",BS!D17) -> 0 | AT16: =IF(BS!E17="","",BS!E17) -> 0
W17: =IF(融資券!A6="","",融資券!A6) -> 2014-05-27 | X17: =IF(融資券!C6="","",融資券!C6/1000) -> 869356.585 | Y17: =IF(融資券!D6="","",融資券!D6) -> -0.021 | Z17: =IF(融資券!E6="","",融資券!E6) -> 12.3525 | AA17: =IF(融資券!F6="","",融資券!F6) -> 1636011 | AB17: =IF(融資券!G6="","",融資券!G6) -> 6.028 | AC17: =IF(融資券!H6="","",融資券!H6) -> 2.7984 | AF17: =IF(IS!$A18="","",IS!$A18) -> 匯兌收益 | AI17: =IF(IS!$C18="","",IS!$C18) -> 0 | AJ17: =IF(IS!$D18="","",IS!$D18) -> 0 | AK17: =IF(IS!$E18="","",IS!$E18) -> 0 | AL17: =IF(IS!$F18="","",IS!$F18) -> 0 | AM17: =IF(IS!$G18="","",IS!$G18) -> 0 | AN17: =IF(IS!$H18="","",IS!$H18) -> 0 | AP17: =BS!A18 -> 資本公積 | AQ17: =IF(BS!B18="","",BS!B18) -> 953203 | AR17: =IF(BS!C18="","",BS!C18) -> 953203 | AS17: =IF(BS!D18="","",BS!D18) -> 953203 | AT17: =IF(BS!E18="","",BS!E18) -> 953203
W18: =IF(融資券!A7="","",融資券!A7) -> 2014-05-26 | X18: =IF(融資券!C7="","",融資券!C7/1000) -> 869540.775 | Y18: =IF(融資券!D7="","",融資券!D7) -> -0.189 | Z18: =IF(融資券!E7="","",融資券!E7) -> 18.0805 | AA18: =IF(融資券!F7="","",融資券!F7) -> 1543005 | AB18: =IF(融資券!G7="","",融資券!G7) -> -2.809 | AC18: =IF(融資券!H7="","",融資券!H7) -> 4.8363 | AF18: =IF(IS!$A19="","",IS!$A19) -> 其他收益 | AI18: =IF(IS!$C19="","",IS!$C19) -> 0 | AJ18: =IF(IS!$D19="","",IS!$D19) -> 0 | AK18: =IF(IS!$E19="","",IS!$E19) -> 0 | AL18: =IF(IS!$F19="","",IS!$F19) -> 0 | AM18: =IF(IS!$G19="","",IS!$G19) -> 0 | AN18: =IF(IS!$H19="","",IS!$H19) -> 0 | AP18: =BS!A19 -> 法定盈餘公積 | AQ18: =IF(BS!B19="","",BS!B19) -> 3368960 | AR18: =IF(BS!C19="","",BS!C19) -> 4356977 | AS18: =IF(BS!D19="","",BS!D19) -> 5678791 | AT18: =IF(BS!E19="","",BS!E19) -> 5678791
AF19: =IF(IS!$A20="","",IS!$A20) -> 營業利潤 | AI19: =IF(IS!$C20="","",IS!$C20) -> 3006589 | AJ19: =IF(IS!$D20="","",IS!$D20) -> 5210919 | AK19: =IF(IS!$E20="","",IS!$E20) -> 3016366 | AL19: =IF(IS!$F20="","",IS!$F20) -> 1816434 | AM19: =IF(IS!$G20="","",IS!$G20) -> 1388714 | AN19: =IF(IS!$H20="","",IS!$H20) -> 3662327 | AP19: =BS!A20 -> 特別盈餘公積 | AQ19: =IF(BS!B20="","",BS!B20) -> 0 | AR19: =IF(BS!C20="","",BS!C20) -> 0 | AS19: =IF(BS!D20="","",BS!D20) -> 0 | AT19: =IF(BS!E20="","",BS!E20) -> 0
AF20: =IF(IS!$A21="","",IS!$A21) -> 營業外收入 | AI20: =IF(IS!$C21="","",IS!$C21) -> 25401 | AJ20: =IF(IS!$D21="","",IS!$D21) -> 16078 | AK20: =IF(IS!$E21="","",IS!$E21) -> 10223 | AL20: =IF(IS!$F21="","",IS!$F21) -> 14810 | AM20: =IF(IS!$G21="","",IS!$G21) -> 24785 | AN20: =IF(IS!$H21="","",IS!$H21) -> 15209 | AP20: =BS!A21 -> 未分配盈餘 | AQ20: =IF(BS!B21="","",BS!B21) -> 15001579 | AR20: =IF(BS!C21="","",BS!C21) -> 22050451 | AS20: =IF(BS!D21="","",BS!D21) -> 25664678 | AT20: =IF(BS!E21="","",BS!E21) -> 28283819
AF21: =IF(IS!$A22="","",IS!$A22) -> 營業外支出 | AI21: =IF(IS!$C22="","",IS!$C22) -> 8147 | AJ21: =IF(IS!$D22="","",IS!$D22) -> 205731 | AK21: =IF(IS!$E22="","",IS!$E22) -> 29014 | AL21: =IF(IS!$F22="","",IS!$F22) -> 5638 | AM21: =IF(IS!$G22="","",IS!$G22) -> 10867 | AN21: =IF(IS!$H22="","",IS!$H22) -> 9220 | AP21: =BS!A22 -> 少數股權 | AQ21: =IF(BS!B22="","",BS!B22) -> 326980 | AR21: =IF(BS!C22="","",BS!C22) -> 364473 | AS21: =IF(BS!D22="","",BS!D22) -> 926645 | AT21: =IF(BS!E22="","",BS!E22) -> 1043053
AF22: =IF(IS!$A23="","",IS!$A23) -> 其中: 非流動資產處置損失 | AI22: =IF(IS!$C23="","",IS!$C23) -> 500 | AJ22: =IF(IS!$D23="","",IS!$D23) -> 0 | AK22: =IF(IS!$E23="","",IS!$E23) -> 4 | AL22: =IF(IS!$F23="","",IS!$F23) -> 207 | AM22: =IF(IS!$G23="","",IS!$G23) -> 2444 | AN22: =IF(IS!$H23="","",IS!$H23) -> 2952 | AP22: =BS!A23 -> 股東權益總額 | AQ22: =IF(BS!B23="","",BS!B23) -> 23446689 | AR22: =IF(BS!C23="","",BS!C23) -> 31521071 | AS22: =IF(BS!D23="","",BS!D23) -> 37019285 | AT22: =IF(BS!E23="","",BS!E23) -> 39754833
AF23: =IF(IS!$A24="","",IS!$A24) -> 利潤總額 | AI23: =IF(IS!$C24="","",IS!$C24) -> 3023843 | AJ23: =IF(IS!$D24="","",IS!$D24) -> 5021266 | AK23: =IF(IS!$E24="","",IS!$E24) -> 2997575 | AL23: =IF(IS!$F24="","",IS!$F24) -> 1825606 | AM23: =IF(IS!$G24="","",IS!$G24) -> 1402632 | AN23: =IF(IS!$H24="","",IS!$H24) -> 3668316 | AP23: =BS!A24 -> 負債及股東權益總額 | AQ23: =IF(BS!B24="","",BS!B24) -> 36905841 | AR23: =IF(BS!C24="","",BS!C24) -> 45247636 | AS23: =IF(BS!D24="","",BS!D24) -> 44129502 | AT23: =IF(BS!E24="","",BS!E24) -> 47317332
AF24: =IF(IS!$A25="","",IS!$A25) -> 所得稅費用 | AI24: =IF(IS!$C25="","",IS!$C25) -> 801715 | AJ24: =IF(IS!$D25="","",IS!$D25) -> 1234975 | AK24: =IF(IS!$E25="","",IS!$E25) -> 743881 | AL24: =IF(IS!$F25="","",IS!$F25) -> 454905 | AM24: =IF(IS!$G25="","",IS!$G25) -> 491103 | AN24: =IF(IS!$H25="","",IS!$H25) -> 932767 | AP24: 損益表
AF25: =IF(IS!$A26="","",IS!$A26) -> 未確認投資損益 | AI25: =IF(IS!$C26="","",IS!$C26) -> 0 | AJ25: =IF(IS!$D26="","",IS!$D26) -> 0 | AK25: =IF(IS!$E26="","",IS!$E26) -> 0 | AL25: =IF(IS!$F26="","",IS!$F26) -> 0 | AM25: =IF(IS!$G26="","",IS!$G26) -> 0 | AN25: =IF(IS!$H26="","",IS!$H26) -> 0 | AP25: =BS!A25 -> 營業收入淨額 | AQ25: =BS!B25 -> 20182025 | AR25: =BS!C25 -> 27050987 | AS25: =BS!D25 -> 24581239 | AT25: =BS!E25 -> 6719852
AF26: =IF(IS!$A27="","",IS!$A27) -> 其他調整項 | AI26: =IF(IS!$C27="","",IS!$C27) -> 0 | AJ26: =IF(IS!$D27="","",IS!$D27) -> 0 | AK26: =IF(IS!$E27="","",IS!$E27) -> 0 | AL26: =IF(IS!$F27="","",IS!$F27) -> 0 | AM26: =IF(IS!$G27="","",IS!$G27) -> 0 | AN26: =IF(IS!$H27="","",IS!$H27) -> 0 | AP26: =BS!A26 -> 營業成本 | AQ26: =BS!B26 -> 6726842 | AR26: =BS!C26 -> 7865665 | AS26: =BS!D26 -> 6473061 | AT26: =BS!E26 -> 1682005
AF27: =IF(IS!$A28="","",IS!$A28) -> 淨利潤 | AI27: =IF(IS!$C28="","",IS!$C28) -> 2222128 | AJ27: =IF(IS!$D28="","",IS!$D28) -> 3786291 | AK27: =IF(IS!$E28="","",IS!$E28) -> 2253694 | AL27: =IF(IS!$F28="","",IS!$F28) -> 1370701 | AM27: =IF(IS!$G28="","",IS!$G28) -> 911529 | AN27: =IF(IS!$H28="","",IS!$H28) -> 2735549 | AP27: =BS!A27 -> 營業毛利 | AQ27: =BS!B27 -> 13455183 | AR27: =BS!C27 -> 19185322 | AS27: =BS!D27 -> 18108178 | AT27: =BS!E27 -> 5037847
AF28: =IF(IS!$A29="","",IS!$A29) -> 歸屬於母公司所有者的淨利潤 | AI28: =IF(IS!$C29="","",IS!$C29) -> 2133003 | AJ28: =IF(IS!$D29="","",IS!$D29) -> 3626866 | AK28: =IF(IS!$E29="","",IS!$E29) -> 2164168 | AL28: =IF(IS!$F29="","",IS!$F29) -> 1312813 | AM28: =IF(IS!$G29="","",IS!$G29) -> 868968 | AN28: =IF(IS!$H29="","",IS!$H29) -> 2619140 | AP28: =BS!A28 -> 營業費用 | AQ28: =BS!B28 -> 3820676 | AR28: =BS!C28 -> 4268150 | AS28: =BS!D28 -> 5645815 | AT28: =BS!E28 -> 1171818
AF29: =IF(IS!$A30="","",IS!$A30) -> 少數股東損益 | AI29: =IF(IS!$C30="","",IS!$C30) -> 89125 | AJ29: =IF(IS!$D30="","",IS!$D30) -> 159425 | AK29: =IF(IS!$E30="","",IS!$E30) -> 89526 | AL29: =IF(IS!$F30="","",IS!$F30) -> 57888 | AM29: =IF(IS!$G30="","",IS!$G30) -> 42561 | AN29: =IF(IS!$H30="","",IS!$H30) -> 116409 | AP29: =BS!A29 -> 營業利益 | AQ29: =BS!B29 -> 8509450 | AR29: =BS!C29 -> 13701053 | AS29: =BS!D29 -> 11440212 | AT29: =BS!E29 -> 3662327
AF30: =IF(IS!$A31="","",IS!$A31) -> 職工福利獎勵基金 | AI30: =IF(IS!$C31="","",IS!$C31) -> 0 | AJ30: =IF(IS!$D31="","",IS!$D31) -> 0 | AK30: =IF(IS!$E31="","",IS!$E31) -> 0 | AL30: =IF(IS!$F31="","",IS!$F31) -> 0 | AM30: =IF(IS!$G31="","",IS!$G31) -> 0 | AN30: =IF(IS!$H31="","",IS!$H31) -> 0 | AP30: =BS!A30 -> 營業外收入合計 | AQ30: =BS!B30 -> 5955 | AR30: =BS!C30 -> 13392 | AS30: =BS!D30 -> 50548 | AT30: =BS!E30 -> 15209
AF31: =IF(IS!$A32="","",IS!$A32) -> 合併方合併前的淨利潤 | AI31: =IF(IS!$C32="","",IS!$C32) -> 0 | AJ31: =IF(IS!$D32="","",IS!$D32) -> 0 | AK31: =IF(IS!$E32="","",IS!$E32) -> 0 | AL31: =IF(IS!$F32="","",IS!$F32) -> 0 | AM31: =IF(IS!$G32="","",IS!$G32) -> 0 | AN31: =IF(IS!$H32="","",IS!$H32) -> 0 | AP31: =BS!A31 -> 營業外支出合計 | AQ31: =BS!B31 -> 54437 | AR31: =BS!C31 -> 28398 | AS31: =BS!D31 -> 251250 | AT31: =BS!E31 -> 9220
AF32: =IF(IS!$A33="","",IS!$A33) -> 基本每股收益(元) | AI32: =IF(IS!$C33="","",IS!$C33) -> 0.56 | AJ32: =IF(IS!$D33="","",IS!$D33) -> 0.95 | AK32: =IF(IS!$E33="","",IS!$E33) -> 0.57 | AL32: =IF(IS!$F33="","",IS!$F33) -> 0.35 | AM32: =IF(IS!$G33="","",IS!$G33) -> 0.23 | AN32: =IF(IS!$H33="","",IS!$H33) -> 0.69 | AP32: =BS!A32 -> 稅前淨利 | AQ32: =BS!B32 -> 8499954 | AR32: =BS!C32 -> 13738666 | AS32: =BS!D32 -> 11247079 | AT32: =BS!E32 -> 3668316
AF33: =IF(IS!$A34="","",IS!$A34) -> 加權平均股數(仟股) | AI33: =IF(IS!$C34="","",IS!$C34) -> 3795967 | AJ33: =IF(IS!$D34="","",IS!$D34) -> 3795967 | AK33: =IF(IS!$E34="","",IS!$E34) -> 3795967 | AL33: =IF(IS!$F34="","",IS!$F34) -> 3795967 | AM33: =IF(IS!$G34="","",IS!$G34) -> 3795967 | AN33: =IF(IS!$H34="","",IS!$H34) -> 3795967 | AP33: =BS!A33 -> 所得稅費用 | AQ33: =BS!B33 -> 2105577 | AR33: =BS!C33 -> 3402932 | AS33: =BS!D33 -> 2924864 | AT33: =BS!E33 -> 932767
AF34: =IF(IS!$A35="","",IS!$A35) -> 當季特別股股息 | AI34: =IF(IS!$C35="","",IS!$C35) -> 0 | AJ34: =IF(IS!$D35="","",IS!$D35) -> 0 | AK34: =IF(IS!$E35="","",IS!$E35) -> 0 | AL34: =IF(IS!$F35="","",IS!$F35) -> 0 | AM34: =IF(IS!$G35="","",IS!$G35) -> 0 | AN34: =IF(IS!$H35="","",IS!$H35) -> 0 | AP34: =BS!A34 -> 少數股權淨利 | AQ34: =BS!B34 -> 236912 | AR34: =BS!C34 -> 400861 | AS34: =BS!D34 -> 349400 | AT34: =BS!E34 -> 116409
F35: 產銷組合-產品別 | AF35: =IF(IS!$A36="","",IS!$A36) -> 已發行普通股股數(仟股) | AI35: =IF(IS!$C36="","",IS!$C36) -> 3795967 | AJ35: =IF(IS!$D36="","",IS!$D36) -> 3795967 | AK35: =IF(IS!$E36="","",IS!$E36) -> 3795967 | AL35: =IF(IS!$F36="","",IS!$F36) -> 3795967 | AM35: =IF(IS!$G36="","",IS!$G36) -> 3795967 | AN35: =IF(IS!$H36="","",IS!$H36) -> 3795967 | AP35: =BS!A35 -> 本期稅後淨利 | AQ35: =BS!B35 -> 6394377 | AR35: =BS!C35 -> 10335734 | AS35: =BS!D35 -> 8322215 | AT35: =BS!E35 -> 2735549
F36: 產品 | G36: 營業收入 | H36: 構成％ | I36: 營業成本 | J36: 營業毛利 | K36: 毛利率 | L36: 營收成長率 | M36: 毛利成長率 | AF36: =IF(IS!$A37="","",IS!$A37) -> 已發行特別股股數(仟股) | AI36: =IF(IS!$C37="","",IS!$C37) -> 0 | AJ36: =IF(IS!$D37="","",IS!$D37) -> 0 | AK36: =IF(IS!$E37="","",IS!$E37) -> 0 | AL36: =IF(IS!$F37="","",IS!$F37) -> 0 | AM36: =IF(IS!$G37="","",IS!$G37) -> 0 | AN36: =IF(IS!$H37="","",IS!$H37) -> 0 | AP36: 現金流量表
F37: =IF(產銷組合1!B3<>"",產銷組合1!B3,"#N/A") -> 酒類 | G37: =IF($F37<>"",產銷組合1!C3,"") -> 23702586 | H37: =IF($F37<>"#N/A",產銷組合1!D3,"#N/A") -> 96.52 | I37: =IF($F37<>"",產銷組合1!E3,"") -> 5736779 | J37: =IF($F37<>"",產銷組合1!F3,"") -> 17965806 | K37: =IF($F37<>"",產銷組合1!G3,"") -> 75.8 | L37: =IF($F37<>"",產銷組合1!H3,"") -> -9.27 | M37: =IF($F37<>"",產銷組合1!I3,"") -> -5.65 | AF37: =IF(IS!$A38="","",IS!$A38) -> 其他綜合收益 | AI37: =IF(IS!$C38="","",IS!$C38) -> 0 | AJ37: =IF(IS!$D38="","",IS!$D38) -> 0 | AK37: =IF(IS!$E38="","",IS!$E38) -> 0 | AL37: =IF(IS!$F38="","",IS!$F38) -> 0 | AM37: =IF(IS!$G38="","",IS!$G38) -> 0 | AN37: =IF(IS!$H38="","",IS!$H38) -> 0 | AP37: =BS!A42 -> 來自營運之現金流量 | AQ37: =BS!B42 -> 9533023 | AR37: =BS!C42 -> 8749667 | AS37: =BS!D42 -> 1458911 | AT37: =BS!E42 -> -2201725
F38: =IF(產銷組合1!B4<>"",產銷組合1!B4,"#N/A") -> 塑料製品業 | G38: =IF($F38<>"",產銷組合1!C4,"") -> 769227 | H38: =IF($F38<>"#N/A",產銷組合1!D4,"#N/A") -> 3.13 | I38: =IF($F38<>"",產銷組合1!E4,"") -> 670406 | J38: =IF($F38<>"",產銷組合1!F4,"") -> 98821 | K38: =IF($F38<>"",產銷組合1!G4,"") -> 12.85 | L38: =IF($F38<>"",產銷組合1!H4,"") -> 5.44 | M38: =IF($F38<>"",產銷組合1!I4,"") -> 22.57 | AF38: =IF(IS!$A39="","",IS!$A39) -> 綜合收益總額 | AI38: =IF(IS!$C39="","",IS!$C39) -> 2222128 | AJ38: =IF(IS!$D39="","",IS!$D39) -> 3786291 | AK38: =IF(IS!$E39="","",IS!$E39) -> 2253694 | AL38: =IF(IS!$F39="","",IS!$F39) -> 1370701 | AM38: =IF(IS!$G39="","",IS!$G39) -> 911529 | AN38: =IF(IS!$H39="","",IS!$H39) -> 2735549 | AP38: =BS!A43 -> 投資活動之現金流量 | AQ38: =BS!B43 -> -613472 | AR38: =BS!C43 -> -341375 | AS38: =BS!D43 -> -321882 | AT38: =BS!E43 -> -784913
F39: =IF(產銷組合1!B5<>"",產銷組合1!B5,"#N/A") -> 印刷 | G39: =IF($F39<>"",產銷組合1!C5,"") -> 44640 | H39: =IF($F39<>"#N/A",產銷組合1!D5,"#N/A") -> 0.18 | I39: =IF($F39<>"",產銷組合1!E5,"") -> 34409 | J39: =IF($F39<>"",產銷組合1!F5,"") -> 10232 | K39: =IF($F39<>"",產銷組合1!G5,"") -> 22.92 | L39: =IF($F39<>"",產銷組合1!H5,"") -> -65.22 | M39: =IF($F39<>"",產銷組合1!I5,"") -> -68.54 | AF39: =IF(IS!$A40="","",IS!$A40) -> 歸屬於母公司所有者綜合收益總額 | AI39: =IF(IS!$C40="","",IS!$C40) -> 2133003 | AJ39: =IF(IS!$D40="","",IS!$D40) -> 3626866 | AK39: =IF(IS!$E40="","",IS!$E40) -> 2164168 | AL39: =IF(IS!$F40="","",IS!$F40) -> 1312813 | AM39: =IF(IS!$G40="","",IS!$G40) -> 868968 | AN39: =IF(IS!$H40="","",IS!$H40) -> 2619140 | AP39: =BS!A44 -> 融資活動之現金流量 | AQ39: =BS!B44 -> -1503137 | AR39: =BS!C44 -> -2113851 | AS39: =BS!D44 -> -3219033 | AT39: =BS!E44 -> -1
F40: =IF(產銷組合1!B6<>"",產銷組合1!B6,"#N/A") -> 其他 | G40: =IF($F40<>"",產銷組合1!C6,"") -> 27533 | H40: =IF($F40<>"#N/A",產銷組合1!D6,"#N/A") -> 0.11 | I40: =IF($F40<>"",產銷組合1!E6,"") -> 20956 | J40: =IF($F40<>"",產銷組合1!F6,"") -> 6576 | K40: =IF($F40<>"",產銷組合1!G6,"") -> 23.89 | L40: =IF($F40<>"",產銷組合1!H6,"") -> 5.92 | M40: =IF($F40<>"",產銷組合1!I6,"") -> -49.58 | W40: 大宗交易 | X40: =IF(大宗交易!A3="","近日無大宗交易","") ->  | AF40: =IF(IS!$A41="","",IS!$A41) -> 歸屬於少數股東的綜合收益總額 | AI40: =IF(IS!$C41="","",IS!$C41) -> 89125 | AJ40: =IF(IS!$D41="","",IS!$D41) -> 159425 | AK40: =IF(IS!$E41="","",IS!$E41) -> 89526 | AL40: =IF(IS!$F41="","",IS!$F41) -> 57888 | AM40: =IF(IS!$G41="","",IS!$G41) -> 42561 | AN40: =IF(IS!$H41="","",IS!$H41) -> 116409 | AP40: =BS!A45 -> 本期產生現金流量 | AQ40: =BS!B45 -> 7416403 | AR40: =BS!C45 -> 6294646 | AS40: =BS!D45 -> -2082012 | AT40: =BS!E45 -> -2986639
F41: =IF(產銷組合1!B7<>"",產銷組合1!B7,"#N/A") -> 玻璃製品 | G41: =IF($F41<>"",產銷組合1!C7,"") -> 12862 | H41: =IF($F41<>"#N/A",產銷組合1!D7,"#N/A") -> 0.05 | I41: =IF($F41<>"",產銷組合1!E7,"") -> 10511 | J41: =IF($F41<>"",產銷組合1!F7,"") -> 2351 | K41: =IF($F41<>"",產銷組合1!G7,"") -> 18.28 | L41: =IF($F41<>"",產銷組合1!H7,"") -> -56.26 | M41: =IF($F41<>"",產銷組合1!I7,"") -> -55.95 | W41: =大宗交易!A$2 -> 交易日 | X41: =大宗交易!C$2 -> 成交價 | Y41: =大宗交易!D$2 -> 成交量(萬股) | Z41: 大宗交易比率 | AA41: =大宗交易!F$2 -> 買入營業部 | AC41: =大宗交易!G$2 -> 賣出營業部 | AF41: 財務比率 | AP41: =BS!A46 -> 每股現金流量 | AQ41: =BS!B46 -> 2.51 | AR41: =BS!C46 -> 2.3 | AS41: =BS!D46 -> 0.38 | AT41: =BS!E46 -> -0.58
F42: =IF(產銷組合1!B8<>"",產銷組合1!B8,"#N/A") -> 營收總計(含內部抵銷) | G42: =IF(產銷組合1!$B8<>"",產銷組合1!$C8,"") -> 24556847 | H42: =IF($F42<>"#N/A",產銷組合1!D8,"#N/A") -> 0 | I42: =IF(產銷組合1!$B8<>"",產銷組合1!E8,"") -> 6473061 | J42: =IF(產銷組合1!$B8<>"",產銷組合1!F8,"") -> 18083786 | K42: =IF(產銷組合1!$B8<>"",產銷組合1!G8,"") -> 73.64 | L42: =IF(產銷組合1!$B8<>"",產銷組合1!H8,"") -> -9.18 | M42: =IF(產銷組合1!$B8<>"",產銷組合1!I8,"") -> -5.68 | W42: =IF(大宗交易!A3="","",大宗交易!A3) -> 2014-05-30 | X42: =IF(大宗交易!C3="","",大宗交易!C3) -> 16.78 | Y42: =IF(大宗交易!D3="","",大宗交易!D3) -> 14.92 | Z42: =IF(大宗交易!E3="","",大宗交易!E3) -> 3.26 | AA42: =IF(大宗交易!F3="","",大宗交易!F3) -> 機構專用 | AC42: =IF(大宗交易!G3="","",大宗交易!G3) -> 機構專用 | AF42: =IF(IS!$A42="","",IS!$A42) -> 稅後淨利成長率 | AI42: =IF(IS!$C42="","",IS!$C42) -> 59.27 | AJ42: =IF(IS!$D42="","",IS!$D42) -> 18.91 | AK42: =IF(IS!$E42="","",IS!$E42) -> 8.42 | AL42: =IF(IS!$F42="","",IS!$F42) -> -52.36 | AM42: =IF(IS!$G42="","",IS!$G42) -> -59.26 | AN42: =IF(IS!$H42="","",IS!$H42) -> -27.79 | AP42: 財務比率
F43: =IF(產銷組合1!B9<>"",產銷組合1!B9,"#N/A") -> #N/A | G43: =IF(產銷組合1!$B9<>"",產銷組合1!$C9,"") ->  | H43: =IF($F43<>"#N/A",產銷組合1!D9,"#N/A") -> #N/A | I43: =IF(產銷組合1!$B9<>"",產銷組合1!E9,"") ->  | J43: =IF(產銷組合1!$B9<>"",產銷組合1!F9,"") ->  | K43: =IF(產銷組合1!$B9<>"",產銷組合1!G9,"") ->  | L43: =IF(產銷組合1!$B9<>"",產銷組合1!H9,"") ->  | M43: =IF(產銷組合1!$B9<>"",產銷組合1!I9,"") ->  | AF43: =IF(IS!$A43="","",IS!$A43) -> 營收成長率 | AI43: =IF(IS!$C43="","",IS!$C43) -> 30.69 | AJ43: =IF(IS!$D43="","",IS!$D43) -> 5.41 | AK43: =IF(IS!$E43="","",IS!$E43) -> 0.3 | AL43: =IF(IS!$F43="","",IS!$F43) -> -39.73 | AM43: =IF(IS!$G43="","",IS!$G43) -> -8.59 | AN43: =IF(IS!$H43="","",IS!$H43) -> -22.54 | AP43: =BS!A36 -> 流動比率 | AQ43: =BS!B36 -> 221.58 | AR43: =BS!C36 -> 277.47 | AS43: =BS!D36 -> 524.55 | AT43: =BS!E36 -> 527.89
F44: =IF(產銷組合1!B10<>"",產銷組合1!B10,"#N/A") -> #N/A | G44: =IF(產銷組合1!$B10<>"",產銷組合1!$C10,"") ->  | H44: =IF($F44<>"#N/A",產銷組合1!D10,"#N/A") -> #N/A | I44: =IF(產銷組合1!$B10<>"",產銷組合1!E10,"") ->  | J44: =IF(產銷組合1!$B10<>"",產銷組合1!F10,"") ->  | K44: =IF(產銷組合1!$B10<>"",產銷組合1!G10,"") ->  | L44: =IF(產銷組合1!$B10<>"",產銷組合1!H10,"") ->  | M44: =IF(產銷組合1!$B10<>"",產銷組合1!I10,"") ->  | W44: =IF(大宗交易!A5="","",大宗交易!A5) ->  | X44: =IF(大宗交易!C5="","",大宗交易!C5) ->  | Y44: =IF(大宗交易!D5="","",大宗交易!D5) ->  | Z44: =IF(大宗交易!E5="","",大宗交易!E5) ->  | AA44: =IF(大宗交易!F5="","",大宗交易!F5) ->  | AC44: =IF(大宗交易!G5="","",大宗交易!G5) ->  | AF44: =IF(IS!$A44="","",IS!$A44) -> 營業毛利率 | AI44: =IF(IS!$C44="","",IS!$C44) -> 76.54 | AJ44: =IF(IS!$D44="","",IS!$D44) -> 76.57 | AK44: =IF(IS!$E44="","",IS!$E44) -> 66.09 | AL44: =IF(IS!$F44="","",IS!$F44) -> 72.9 | AM44: =IF(IS!$G44="","",IS!$G44) -> 79.07 | AN44: =IF(IS!$H44="","",IS!$H44) -> 74.97 | AP44: =BS!A37 -> 速動比率 | AQ44: =BS!B37 -> 178.4 | AR44: =BS!C37 -> 226.7 | AS44: =BS!D37 -> 423.75 | AT44: =BS!E37 -> 431.54
F45: =IF(產銷組合1!B11<>"",產銷組合1!B11,"#N/A") -> #N/A | G45: =IF(產銷組合1!$B11<>"",產銷組合1!$C11,"") ->  | H45: =IF($F45<>"#N/A",產銷組合1!D11,"#N/A") -> #N/A | I45: =IF(產銷組合1!$B11<>"",產銷組合1!E11,"") ->  | J45: =IF(產銷組合1!$B11<>"",產銷組合1!F11,"") ->  | K45: =IF(產銷組合1!$B11<>"",產銷組合1!G11,"") ->  | L45: =IF(產銷組合1!$B11<>"",產銷組合1!H11,"") ->  | M45: =IF(產銷組合1!$B11<>"",產銷組合1!I11,"") ->  | AF45: =IF(IS!$A45="","",IS!$A45) -> 營業利益率 | AI45: =IF(IS!$C45="","",IS!$C45) -> 50.67 | AJ45: =IF(IS!$D45="","",IS!$D45) -> 60.08 | AK45: =IF(IS!$E45="","",IS!$E45) -> 44.42 | AL45: =IF(IS!$F45="","",IS!$F45) -> 49.35 | AM45: =IF(IS!$G45="","",IS!$G45) -> 25.61 | AN45: =IF(IS!$H45="","",IS!$H45) -> 54.5 | AP45: =BS!A38 -> 負債比率 | AQ45: =BS!B38 -> 36.47 | AR45: =BS!C38 -> 30.34 | AS45: =BS!D38 -> 16.11 | AT45: =BS!E38 -> 15.98
F46: =IF(產銷組合1!B12<>"",產銷組合1!B12,"#N/A") -> #N/A | G46: =IF(產銷組合1!$B12<>"",產銷組合1!$C12,"") ->  | H46: =IF($F46<>"#N/A",產銷組合1!D12,"#N/A") -> #N/A | I46: =IF(產銷組合1!$B12<>"",產銷組合1!E12,"") ->  | J46: =IF(產銷組合1!$B12<>"",產銷組合1!F12,"") ->  | K46: =IF(產銷組合1!$B12<>"",產銷組合1!G12,"") ->  | L46: =IF(產銷組合1!$B12<>"",產銷組合1!H12,"") ->  | M46: =IF(產銷組合1!$B12<>"",產銷組合1!I12,"") ->  | W46: =IF(大宗交易!A7="","",大宗交易!A7) ->  | X46: =IF(大宗交易!C7="","",大宗交易!C7) ->  | Y46: =IF(大宗交易!D7="","",大宗交易!D7) ->  | Z46: =IF(大宗交易!E7="","",大宗交易!E7) ->  | AA46: =IF(大宗交易!F7="","",大宗交易!F7) ->  | AC46: =IF(大宗交易!G7="","",大宗交易!G7) ->  | AF46: =IF(IS!$A46="","",IS!$A46) -> 稅前淨利率 | AI46: =IF(IS!$C46="","",IS!$C46) -> 51.04 | AJ46: =IF(IS!$D46="","",IS!$D46) -> 57.88 | AK46: =IF(IS!$E46="","",IS!$E46) -> 44.02 | AL46: =IF(IS!$F46="","",IS!$F46) -> 49.6 | AM46: =IF(IS!$G46="","",IS!$G46) -> 25.9 | AN46: =IF(IS!$H46="","",IS!$H46) -> 54.59 | AP46: =BS!A39 -> 每股淨值 (A) | AQ46: =BS!B39 -> 6.09 | AR46: =BS!C39 -> 8.21 | AS46: =BS!D39 -> 9.51 | AT46: =BS!E39 -> 10.2
F47: =IF(產銷組合1!B13<>"",產銷組合1!B13,"#N/A") -> #N/A | G47: =IF(產銷組合1!$B13<>"",產銷組合1!$C13,"") ->  | H47: =IF($F47<>"#N/A",產銷組合1!D13,"#N/A") -> #N/A | I47: =IF(產銷組合1!$B13<>"",產銷組合1!E13,"") ->  | J47: =IF(產銷組合1!$B13<>"",產銷組合1!F13,"") ->  | K47: =IF(產銷組合1!$B13<>"",產銷組合1!G13,"") ->  | L47: =IF(產銷組合1!$B13<>"",產銷組合1!H13,"") ->  | M47: =IF(產銷組合1!$B13<>"",產銷組合1!I13,"") ->  | AF47: =IF(IS!$A47="","",IS!$A47) -> 稅後淨利率 | AI47: =IF(IS!$C47="","",IS!$C47) -> 36 | AJ47: =IF(IS!$D47="","",IS!$D47) -> 41.8 | AK47: =IF(IS!$E47="","",IS!$E47) -> 31.78 | AL47: =IF(IS!$F47="","",IS!$F47) -> 35.67 | AM47: =IF(IS!$G47="","",IS!$G47) -> 16.05 | AN47: =IF(IS!$H47="","",IS!$H47) -> 38.98 | AP47: =BS!A40 -> 應收帳款收現天數 | AQ47: =BS!B40 -> 38.74 | AR47: =BS!C40 -> 31.64 | AS47: =BS!D40 -> 47.34 | AT47: =BS!E40 -> 87.68
AF48: =IF(IS!$A49="","",IS!$A49) -> ROE(A)-(稅後) | AI48: =IF(IS!$C49="","",IS!$C49) -> 7.27 | AJ48: =IF(IS!$D49="","",IS!$D49) -> 11.34 | AK48: =IF(IS!$E49="","",IS!$E49) -> 6.46 | AL48: =IF(IS!$F49="","",IS!$F49) -> 3.89 | AM48: =IF(IS!$G49="","",IS!$G49) -> 2.5 | AN48: =IF(IS!$H49="","",IS!$H49) -> 7.13 | AP48: =BS!A41 -> 平均售貨天數 | AQ48: =BS!B41 -> 272.69 | AR48: =BS!C41 -> 283.45 | AS48: =BS!D41 -> 382.47 | AT48: =BS!E41 -> 377.73
F49: 產銷組合-地區別 | W49: 十大股東 | X49: =TEXT(十大股東!C2,"YYYY/MM") -> 2014/05
F50: 地區 | G50: 營業收入 | H50: 構成％ | I50: 營業成本 | J50: 營業毛利 | K50: 毛利率 | L50: 營收成長率 | M50: 毛利成長率 | W50: 持股人名稱 | AB50: 持股種類 | AC50: 十大排名 | AD50: 持股率 | AF50: 限制流通(M) | AG50: 國別 | AH50: 持股變化 | AJ50: =IF(IS!$D50="","",IS!$D50) ->  | AK50: 新聞
F51: =IF(產銷組合1!B31<>"",IF(ISERROR(FIND("_",產銷組合1!B31,1)),產銷組合1!B31,""),"") -> 中國 | G51: =IF($F51<>"",產銷組合1!C31,"") -> 24556847 | H51: =IF($F51<>"",產銷組合1!D31,"") -> 100 | I51: =IF($F51<>"",產銷組合1!E31,"") -> 6473061 | J51: =IF($F51<>"",產銷組合1!F31,"") -> 18083786 | K51: =IF($F51<>"",產銷組合1!G31,"") -> 73.64 | L51: =IF($F51<>"",產銷組合1!H31,"") -> -9.18 | M51: =IF($F51<>"",產銷組合1!I31,"") -> -5.68 | W51: =十大股東!$B4 -> 宜賓市國有資產經營有限公司 | AB51: =十大股東!$C4 -> A | AC51: =十大股東!$D4 -> 1 | AD51: =十大股東!$E4 -> 36 | AF51: =十大股東!$F4 -> 0 | AG51: =十大股東!$G4 -> 中國 | AH51: =十大股東!E4-十大股東!J4 -> 0 | AK51: =新聞!A2 -> 年月日 | AL51: =新聞!D2 -> 新聞內容
F52: =IF(產銷組合1!B32<>"",IF(ISERROR(FIND("_",產銷組合1!B32,1)),產銷組合1!B32,""),"") -> 營收總計(含內部抵銷) | G52: =IF($F52<>"",產銷組合1!C32,"") -> 24556847 | H52: =IF($F52<>"",產銷組合1!D32,"") -> 0 | I52: =IF($F52<>"",產銷組合1!E32,"") -> 6473061 | J52: =IF($F52<>"",產銷組合1!F32,"") -> 18083786 | K52: =IF($F52<>"",產銷組合1!G32,"") -> 73.64 | L52: =IF($F52<>"",產銷組合1!H32,"") -> -9.18 | M52: =IF($F52<>"",產銷組合1!I32,"") -> -5.68 | W52: =十大股東!$B5 -> 四川省宜賓五糧液集團有限公司 | AB52: =十大股東!$C5 -> A | AC52: =十大股東!$D5 -> 2 | AD52: =十大股東!$E5 -> 20.07 | AF52: =十大股東!$F5 -> 0 | AG52: =十大股東!$G5 -> 中國 | AH52: =十大股東!E5-十大股東!J5 -> 0 | AK52: =IF(新聞!A3="","",新聞!A3) -> 2014-05-13 | AL52: =IF(新聞!D3="","",新聞!D3) -> ＊五 糧 液：共同出資設立的四川省宜賓五糧液集團財務 有限公司獲得開業批復 （中財網）
F53: =IF(產銷組合1!B33<>"",IF(ISERROR(FIND("_",產銷組合1!B33,1)),產銷組合1!B33,""),"") ->  | G53: =IF($F53<>"",產銷組合1!C33,"") ->  | H53: =IF($F53<>"",產銷組合1!D33,"") ->  | I53: =IF($F53<>"",產銷組合1!E33,"") ->  | J53: =IF($F53<>"",產銷組合1!F33,"") ->  | K53: =IF($F53<>"",產銷組合1!G33,"") ->  | L53: =IF($F53<>"",產銷組合1!H33,"") ->  | M53: =IF($F53<>"",產銷組合1!I33,"") ->  | W53: =十大股東!$B6 -> 生命人壽保險股份有限公司-萬能H | AB53: =十大股東!$C6 -> A | AC53: =十大股東!$D6 -> 3 | AD53: =十大股東!$E6 -> 1.51 | AF53: =十大股東!$F6 -> 0 | AG53: =十大股東!$G6 -> 中國 | AH53: =十大股東!E6-十大股東!J6 -> 0 | AK53: =IF(新聞!A4="","",新聞!A4) -> 2014-05-13 | AL53: =IF(新聞!D4="","",新聞!D4) -> ＊五 糧 液：第四屆董事會公告 （中財網）
F54: =IF(產銷組合1!B34<>"",IF(ISERROR(FIND("_",產銷組合1!B34,1)),產銷組合1!B34,""),"") ->  | G54: =IF($F54<>"",產銷組合1!C34,"") ->  | H54: =IF($F54<>"",產銷組合1!D34,"") ->  | I54: =IF($F54<>"",產銷組合1!E34,"") ->  | J54: =IF($F54<>"",產銷組合1!F34,"") ->  | K54: =IF($F54<>"",產銷組合1!G34,"") ->  | L54: =IF($F54<>"",產銷組合1!H34,"") ->  | M54: =IF($F54<>"",產銷組合1!I34,"") ->  | W54: =十大股東!$B7 -> 全國社保基金一零三組合 | AB54: =十大股東!$C7 -> A | AC54: =十大股東!$D7 -> 4 | AD54: =十大股東!$E7 -> 0.61 | AF54: =十大股東!$F7 -> 0 | AG54: =十大股東!$G7 -> 中國 | AH54: =十大股東!E7-十大股東!J7 -> 0 | AK54: =IF(新聞!A5="","",新聞!A5) -> 2014-05-10 | AL54: =IF(新聞!D5="","",新聞!D5) -> ＊五 糧 液：2013年度股東大會決議 （中財網）
F55: =IF(產銷組合1!B35<>"",IF(ISERROR(FIND("_",產銷組合1!B35,1)),產銷組合1!B35,""),"") ->  | G55: =IF($F55<>"",產銷組合1!C35,"") ->  | H55: =IF($F55<>"",產銷組合1!D35,"") ->  | I55: =IF($F55<>"",產銷組合1!E35,"") ->  | J55: =IF($F55<>"",產銷組合1!F35,"") ->  | K55: =IF($F55<>"",產銷組合1!G35,"") ->  | L55: =IF($F55<>"",產銷組合1!H35,"") ->  | M55: =IF($F55<>"",產銷組合1!I35,"") ->  | W55: =十大股東!$B8 -> 銀華深證100 指數分級證券投資基金 | AB55: =十大股東!$C8 -> A | AC55: =十大股東!$D8 -> 5 | AD55: =十大股東!$E8 -> 0.52 | AF55: =十大股東!$F8 -> 0 | AG55: =十大股東!$G8 -> 中國 | AH55: =十大股東!E8-十大股東!J8 -> 0 | AK55: =IF(新聞!A6="","",新聞!A6) -> 2014-05-05 | AL55: =IF(新聞!D6="","",新聞!D6) -> ＊五 糧 液：2013年度報告中股東戶數的更正 （中財網）
F56: =IF(產銷組合1!B36<>"",IF(ISERROR(FIND("_",產銷組合1!B36,1)),產銷組合1!B36,""),"") ->  | G56: =IF($F56<>"",產銷組合1!C36,"") ->  | H56: =IF($F56<>"",產銷組合1!D36,"") ->  | I56: =IF($F56<>"",產銷組合1!E36,"") ->  | J56: =IF($F56<>"",產銷組合1!F36,"") ->  | K56: =IF($F56<>"",產銷組合1!G36,"") ->  | L56: =IF($F56<>"",產銷組合1!H36,"") ->  | M56: =IF($F56<>"",產銷組合1!I36,"") ->  | W56: =十大股東!$B9 -> 南方東英資產管理有限公司- 南方富時中國A50ETF | AB56: =十大股東!$C9 -> A | AC56: =十大股東!$D9 -> 7 | AD56: =十大股東!$E9 -> 0.45 | AF56: =十大股東!$F9 -> 0 | AG56: =十大股東!$G9 -> 中國 | AH56: =十大股東!E9-十大股東!J9 -> 0 | AK56: =IF(新聞!A7="","",新聞!A7) -> 2014-04-28 | AL56: =IF(新聞!D7="","",新聞!D7) -> ＊五 糧 液：2014年一季度報告主要財務指標 （中財網）
F57: =IF(產銷組合1!B37<>"",IF(ISERROR(FIND("_",產銷組合1!B37,1)),產銷組合1!B37,""),"") ->  | G57: =IF($F57<>"",產銷組合1!C37,"") ->  | H57: =IF($F57<>"",產銷組合1!D37,"") ->  | I57: =IF($F57<>"",產銷組合1!E37,"") ->  | J57: =IF($F57<>"",產銷組合1!F37,"") ->  | K57: =IF($F57<>"",產銷組合1!G37,"") ->  | L57: =IF($F57<>"",產銷組合1!H37,"") ->  | M57: =IF($F57<>"",產銷組合1!I37,"") ->  | W57: =十大股東!$B10 -> 陽光人壽保險股份有限公司- 分紅保險產品 | AB57: =十大股東!$C10 -> A | AC57: =十大股東!$D10 -> 6 | AD57: =十大股東!$E10 -> 0.45 | AF57: =十大股東!$F10 -> 0 | AG57: =十大股東!$G10 -> 中國 | AH57: =十大股東!E10-十大股東!J10 -> 0 | AK57: =IF(新聞!A8="","",新聞!A8) -> 2014-04-18 | AL57: =IF(新聞!D8="","",新聞!D8) -> ＊五 糧 液：召開2013年度股東大會的通知 （中財網）
F58: =IF(產銷組合1!B38<>"",IF(ISERROR(FIND("_",產銷組合1!B38,1)),產銷組合1!B38,""),"") ->  | G58: =IF($F58<>"",產銷組合1!C38,"") ->  | H58: =IF($F58<>"",產銷組合1!D38,"") ->  | I58: =IF($F58<>"",產銷組合1!E38,"") ->  | J58: =IF($F58<>"",產銷組合1!F38,"") ->  | K58: =IF($F58<>"",產銷組合1!G38,"") ->  | L58: =IF($F58<>"",產銷組合1!H38,"") ->  | M58: =IF($F58<>"",產銷組合1!I38,"") ->  | W58: =十大股東!$B11 -> 融通深證100指數證券投資基金 | AB58: =十大股東!$C11 -> A | AC58: =十大股東!$D11 -> 8 | AD58: =十大股東!$E11 -> 0.4 | AF58: =十大股東!$F11 -> 0 | AG58: =十大股東!$G11 -> 中國 | AH58: =十大股東!E11-十大股東!J11 -> 0 | AK58: =IF(新聞!A9="","",新聞!A9) -> 2014-04-18 | AL58: =IF(新聞!D9="","",新聞!D9) -> ＊五 糧 液：2013年年度報告主要財務指標及分配預案 （中財網）
F59: =IF(產銷組合1!B39<>"",IF(ISERROR(FIND("_",產銷組合1!B39,1)),產銷組合1!B39,""),"") ->  | G59: =IF($F59<>"",產銷組合1!C39,"") ->  | H59: =IF($F59<>"",產銷組合1!D39,"") ->  | I59: =IF($F59<>"",產銷組合1!E39,"") ->  | J59: =IF($F59<>"",產銷組合1!F39,"") ->  | K59: =IF($F59<>"",產銷組合1!G39,"") ->  | L59: =IF($F59<>"",產銷組合1!H39,"") ->  | M59: =IF($F59<>"",產銷組合1!I39,"") ->  | W59: =十大股東!$B12 -> 博時主題行業股票證券投資基金 | AB59: =十大股東!$C12 -> A | AC59: =十大股東!$D12 -> 9 | AD59: =十大股東!$E12 -> 0.38 | AF59: =十大股東!$F12 -> 0 | AG59: =十大股東!$G12 -> 中國 | AH59: =十大股東!E12-十大股東!J12 -> 0 | AK59: =IF(新聞!A10="","",新聞!A10) -> 2014-03-22 | AL59: =IF(新聞!D10="","",新聞!D10) -> ＊五 糧 液：第四屆董事會公告 （中財網）
F60: =IF(產銷組合1!B40<>"",IF(ISERROR(FIND("_",產銷組合1!B40,1)),產銷組合1!B40,""),"") ->  | G60: =IF($F60<>"",產銷組合1!C40,"") ->  | H60: =IF($F60<>"",產銷組合1!D40,"") ->  | I60: =IF($F60<>"",產銷組合1!E40,"") ->  | J60: =IF($F60<>"",產銷組合1!F40,"") ->  | K60: =IF($F60<>"",產銷組合1!G40,"") ->  | L60: =IF($F60<>"",產銷組合1!H40,"") ->  | M60: =IF($F60<>"",產銷組合1!I40,"") ->  | W60: =十大股東!$B13 -> 易方達深證 100交易型開放式指數基金 | AB60: =十大股東!$C13 -> A | AC60: =十大股東!$D13 -> 10 | AD60: =十大股東!$E13 -> 0.37 | AF60: =十大股東!$F13 -> 0 | AG60: =十大股東!$G13 -> 中國 | AH60: =十大股東!E13-十大股東!J13 -> 0 | AK60: =IF(新聞!A11="","",新聞!A11) -> 2014-03-10 | AL60: =IF(新聞!D11="","",新聞!D11) -> ＊五 糧 液：2013年度業績快報 （中財網）
F61: =IF(產銷組合1!B41<>"",IF(ISERROR(FIND("_",產銷組合1!B41,1)),產銷組合1!B41,""),"") ->  | G61: =IF($F61<>"",產銷組合1!C41,"") ->  | H61: =IF($F61<>"",產銷組合1!D41,"") ->  | I61: =IF($F61<>"",產銷組合1!E41,"") ->  | J61: =IF($F61<>"",產銷組合1!F41,"") ->  | K61: =IF($F61<>"",產銷組合1!G41,"") ->  | L61: =IF($F61<>"",產銷組合1!H41,"") ->  | M61: =IF($F61<>"",產銷組合1!I41,"") -> 
W81: =IF(新聞!A6="","",新聞!A6) -> 2014-05-05 | X81: =IF(新聞!B6="","",新聞!B6) -> 1 | Y81: =IF(新聞!C6="","",新聞!C6) -> 0 | Z81: =IF(新聞!D6="","",新聞!D6) -> ＊五 糧 液：2013年度報告中股東戶數的更正 （中財網） | AA81: =IF(新聞!E6="","",新聞!E6) ->  | AB81: =IF(新聞!F6="","",新聞!F6) ->  | AC81: =IF(新聞!G6="","",新聞!G6) ->  | AD81: =IF(新聞!H6="","",新聞!H6) ->  | AE81: =IF(新聞!I6="","",新聞!I6) ->  | AF81: =IF(新聞!J6="","",新聞!J6) -> 
W82: =IF(新聞!A7="","",新聞!A7) -> 2014-04-28 | X82: =IF(新聞!B7="","",新聞!B7) -> 1 | Y82: =IF(新聞!C7="","",新聞!C7) -> 0 | Z82: =IF(新聞!D7="","",新聞!D7) -> ＊五 糧 液：2014年一季度報告主要財務指標 （中財網） | AA82: =IF(新聞!E7="","",新聞!E7) ->  | AB82: =IF(新聞!F7="","",新聞!F7) ->  | AC82: =IF(新聞!G7="","",新聞!G7) ->  | AD82: =IF(新聞!H7="","",新聞!H7) ->  | AE82: =IF(新聞!I7="","",新聞!I7) ->  | AF82: =IF(新聞!J7="","",新聞!J7) -> 
W83: =IF(新聞!A8="","",新聞!A8) -> 2014-04-18 | X83: =IF(新聞!B8="","",新聞!B8) -> 1 | Y83: =IF(新聞!C8="","",新聞!C8) -> 0 | Z83: =IF(新聞!D8="","",新聞!D8) -> ＊五 糧 液：召開2013年度股東大會的通知 （中財網） | AA83: =IF(新聞!E8="","",新聞!E8) ->  | AB83: =IF(新聞!F8="","",新聞!F8) ->  | AC83: =IF(新聞!G8="","",新聞!G8) ->  | AD83: =IF(新聞!H8="","",新聞!H8) ->  | AE83: =IF(新聞!I8="","",新聞!I8) ->  | AF83: =IF(新聞!J8="","",新聞!J8) -> 
W84: =IF(新聞!A9="","",新聞!A9) -> 2014-04-18 | X84: =IF(新聞!B9="","",新聞!B9) -> 2 | Y84: =IF(新聞!C9="","",新聞!C9) -> 0 | Z84: =IF(新聞!D9="","",新聞!D9) -> ＊五 糧 液：2013年年度報告主要財務指標及分配預案 （中財網） | AA84: =IF(新聞!E9="","",新聞!E9) ->  | AB84: =IF(新聞!F9="","",新聞!F9) ->  | AC84: =IF(新聞!G9="","",新聞!G9) ->  | AD84: =IF(新聞!H9="","",新聞!H9) ->  | AE84: =IF(新聞!I9="","",新聞!I9) ->  | AF84: =IF(新聞!J9="","",新聞!J9) -> 
W85: =IF(新聞!A10="","",新聞!A10) -> 2014-03-22 | X85: =IF(新聞!B10="","",新聞!B10) -> 1 | Y85: =IF(新聞!C10="","",新聞!C10) -> 0 | Z85: =IF(新聞!D10="","",新聞!D10) -> ＊五 糧 液：第四屆董事會公告 （中財網） | AA85: =IF(新聞!E10="","",新聞!E10) ->  | AB85: =IF(新聞!F10="","",新聞!F10) ->  | AC85: =IF(新聞!G10="","",新聞!G10) ->  | AD85: =IF(新聞!H10="","",新聞!H10) ->  | AE85: =IF(新聞!I10="","",新聞!I10) ->  | AF85: =IF(新聞!J10="","",新聞!J10) -> 
W86: =IF(新聞!A11="","",新聞!A11) -> 2014-03-10 | X86: =IF(新聞!B11="","",新聞!B11) -> 1 | Y86: =IF(新聞!C11="","",新聞!C11) -> 0 | Z86: =IF(新聞!D11="","",新聞!D11) -> ＊五 糧 液：2013年度業績快報 （中財網） | AA86: =IF(新聞!E11="","",新聞!E11) ->  | AB86: =IF(新聞!F11="","",新聞!F11) ->  | AC86: =IF(新聞!G11="","",新聞!G11) ->  | AD86: =IF(新聞!H11="","",新聞!H11) ->  | AE86: =IF(新聞!I11="","",新聞!I11) ->  | AF86: =IF(新聞!J11="","",新聞!J11) -> 
W87: =IF(新聞!A12="","",新聞!A12) ->  | X87: =IF(新聞!B12="","",新聞!B12) ->  | Y87: =IF(新聞!C12="","",新聞!C12) ->  | Z87: =IF(新聞!D12="","",新聞!D12) ->  | AA87: =IF(新聞!E12="","",新聞!E12) ->  | AB87: =IF(新聞!F12="","",新聞!F12) ->  | AC87: =IF(新聞!G12="","",新聞!G12) ->  | AD87: =IF(新聞!H12="","",新聞!H12) ->  | AE87: =IF(新聞!I12="","",新聞!I12) ->  | AF87: =IF(新聞!J12="","",新聞!J12) -> 

Sheet 基本資料
A1: 000858 五糧液
A2: 上市交易所 | B2: 公司全稱(中) | C2: 辦公地址 | D2: 電話 | E2: 董事長 | F2: 總經理 | G2: 上市日期 | H2: 註冊資本 (股) | I2: CSRC分類-門類 | J2: H股 上市碼
A3: 深圳 | B3: 宜賓五糧液股份有限公司 | C3: 四川省宜賓市翠屏區岷江西路150 號 | D3: 86-831-3566858 | E3: 劉中國 | F3: 陳林 | G3: 1998-04-27 | H3: 3,795,966,720 | I3: C 製造業

Sheet 十大股東
A1: 000858 五糧液
C2: 2014-05-30 | D2: 2014-05-30 | E2: 2014-05-30 | F2: 2014-05-30 | G2: 2014-05-30 | H2: 2014-03-31 | I2: 2014-03-31 | J2: 2014-03-31 | K2: 2014-03-31 | L2: 2014-03-31
B3: 持股人名稱 | C3: 持股種類 | D3: 十大排名 | E3: 總持股率（％） | F3: 限制流通股數（股） | G3: 國別 | H3: 持股種類 | I3: 十大排名 | J3: 總持股率（％） | K3: 限制流通股數（股） | L3: 國別
B4: 宜賓市國有資產經營有限公司 | C4: A | D4: 1 | E4: 36 | F4: 0 | G4: 中國 | H4: A | I4: 1 | J4: 36 | K4: 0 | L4: 中國
B5: 四川省宜賓五糧液集團有限公司 | C5: A | D5: 2 | E5: 20.07 | F5: 0 | G5: 中國 | H5: A | I5: 2 | J5: 20.07 | K5: 0 | L5: 中國
B6: 生命人壽保險股份有限公司-萬能H | C6: A | D6: 3 | E6: 1.51 | F6: 0 | G6: 中國 | H6: A | I6: 3 | J6: 1.51 | K6: 0 | L6: 中國
B7: 全國社保基金一零三組合 | C7: A | D7: 4 | E7: 0.61 | F7: 0 | G7: 中國 | H7: A | I7: 4 | J7: 0.61 | K7: 0 | L7: 中國
B8: 銀華深證100 指數分級證券投資基金 | C8: A | D8: 5 | E8: 0.52 | F8: 0 | G8: 中國 | H8: A | I8: 5 | J8: 0.52 | K8: 0 | L8: 中國
B9: 南方東英資產管理有限公司- 南方富時中國A50ETF | C9: A | D9: 7 | E9: 0.45 | F9: 0 | G9: 中國 | H9: A | I9: 7 | J9: 0.45 | K9: 0 | L9: 中國
B10: 陽光人壽保險股份有限公司- 分紅保險產品 | C10: A | D10: 6 | E10: 0.45 | F10: 0 | G10: 中國 | H10: A | I10: 6 | J10: 0.45 | K10: 0 | L10: 中國
B11: 融通深證100指數證券投資基金 | C11: A | D11: 8 | E11: 0.4 | F11: 0 | G11: 中國 | H11: A | I11: 8 | J11: 0.4 | K11: 0 | L11: 中國
B12: 博時主題行業股票證券投資基金 | C12: A | D12: 9 | E12: 0.38 | F12: 0 | G12: 中國 | H12: A | I12: 9 | J12: 0.38 | K12: 0 | L12: 中國
B13: 易方達深證 100交易型開放式指數基金 | C13: A | D13: 10 | E13: 0.37 | F13: 0 | G13: 中國 | H13: A | I13: 10 | J13: 0.37 | K13: 0 | L13: 中國
B14: _A股東戶數
B15: _B股東戶數
B16: _H股東戶數
B17: _股東戶數

Sheet 產銷組合1
A1: 000858 五糧液 | X1: 2011-12-30 | Y1: 2012-06-29 | Z1: 2012-12-31 | AA1: 2013-06-28 | AB1: 2013-12-31
A2: 年月 | B2: 營業項目 | C2: 營業收入 | D2: 營收構成％ | E2: 營業成本 | F2: 營業毛利 | G2: 營業毛利率％ | H2: 營業收入成長率％ | I2: 營業毛利成長率％ | V2: 判斷 | W2: 營業項目 | X2: 營收構成％ | Y2: 營收構成％ | Z2: 營收構成％ | AA2: 營收構成％ | AB2: 營收構成％ | AQ2: 判斷 | AR2: 營業項目 | AS2: 營收構成％ | AT2: 營收構成％ | AU2: 營收構成％ | AV2: 營收構成％ | AW2: 營收構成％
A3: 2013-12-31 | B3: 酒類 | C3: 23702586 | D3: 96.52 | E3: 5736779 | F3: 17965806 | G3: 75.8 | H3: -9.27 | I3: -5.65 | V3: =IF(W3="","",IF(X3<>"","Y","")) ->  | W3: 塑膠產品 | Z3: 2.68 | AA3: 2.88 | AQ3: Y
A4: 2013-12-31 | B4: 塑料製品業 | C4: 769227 | D4: 3.13 | E4: 670406 | F4: 98821 | G4: 12.85 | H4: 5.44 | I4: 22.57 | V4: =IF(W4="","",IF(X4<>"","Y","")) ->  | W4: 營收總計(含內部抵銷)
A5: 2013-12-31 | B5: 印刷 | C5: 44640 | D5: 0.18 | E5: 34409 | F5: 10232 | G5: 22.92 | H5: -65.22 | I5: -68.54 | V5: Y | W5: 化工 | X5: 0.02
A6: 2013-12-31 | B6: 其他 | C6: 27533 | D6: 0.11 | E6: 20956 | F6: 6576 | G6: 23.89 | H6: 5.92 | I6: -49.58 | V6: Y | W6: 紙箱 | X6: 0.02
A7: 2013-12-31 | B7: 玻璃製品 | C7: 12862 | D7: 0.05 | E7: 10511 | F7: 2351 | G7: 18.28 | H7: -56.26 | I7: -55.95 | V7: Y | W7: 其他 | X7: 0.06 | Y7: 0.3 | Z7: 0.1 | AA7: 0.06 | AB7: 0.11
A8: 2013-12-31 | B8: 營收總計(含內部抵銷) | C8: 24556847 | E8: 6473061 | F8: 18083786 | G8: 73.64 | H8: -9.18 | I8: -5.68 | V8: Y | W8: 玻璃製品 | X8: 0.21 | Z8: 0.11 | AA8: 0.03 | AB8: 0.05
V9: Y | W9: 印刷 | X9: 0.32 | Y9: 0.22 | Z9: 0.47 | AA9: 0.59 | AB9: 0.18
V10: Y | W10: 其他業務收入 | X10: 0.92 | Y10: 0.22 | Z10: 0.6 | AA10: 0.27
V11: Y | W11: 塑料製品業 | X11: 7.67 | Y11: 2.7 | AB11: 3.13
V12: Y | W12: 酒類 | X12: 90.78 | Y12: 96.56 | Z12: 96.05 | AA12: 96.16 | AB12: 96.52
A30: 年月 | B30: 營業項目 | C30: 營業收入 | D30: 營收構成％ | E30: 營業成本 | F30: 營業毛利 | G30: 營業毛利率％ | H30: 營業收入成長率％ | I30: 營業毛利成長率％
A31: 2013-12-31 | B31: 中國 | C31: 24556847 | D31: 100 | E31: 6473061 | F31: 18083786 | G31: 73.64 | H31: -9.18 | I31: -5.68
A32: 2013-12-31 | B32: 營收總計(含內部抵銷) | C32: 24556847 | E32: 6473061 | F32: 18083786 | G32: 73.64 | H32: -9.18 | I32: -5.68
V68: =IF(W68="","",IF(X68<>"","Y","")) -> 
X100: =TEXT(X$1,"YYYY/MM") -> 2011/12 | Y100: =TEXT(Y$1,"YYYY/MM") -> 2012/06 | Z100: =TEXT(Z$1,"YYYY/MM") -> 2012/12 | AA100: =TEXT(AA$1,"YYYY/MM") -> 2013/06 | AB100: =TEXT(AB$1,"YYYY/MM") -> 2013/12
V101: 判斷 | W101: 營業項目 | X101: 營收構成％ | Y101: 營收構成％ | Z101: 營收構成％ | AA101: 營收構成％ | AB101: 營收構成％
V102: Y | W102: 化工 | X102: 0.02 | Y102: 0.02 | Z102: 0.02 | AA102: 0.02 | AB102: 0.02
V103: Y | W103: 紙箱 | X103: 0.02 | Y103: 0.02 | Z103: 0.02 | AA103: 0.02 | AB103: 0.02
V104: Y | W104: 其他 | X104: 0.06 | Y104: 0.06 | Z104: 0.06 | AA104: 0.06 | AB104: 0.06
V105: Y | W105: 玻璃製品 | X105: 0.21 | Y105: 0.21 | Z105: 0.21 | AA105: 0.21 | AB105: 0.21
V106: Y | W106: 印刷 | X106: 0.32 | Y106: 0.32 | Z106: 0.32 | AA106: 0.32 | AB106: 0.32
V107: Y | W107: 其他業務收入 | X107: 0.92 | Y107: 0.92 | Z107: 0.92 | AA107: 0.92 | AB107: 0.92
V108: Y | W108: 塑料製品業 | X108: 7.67 | Y108: 7.67 | Z108: 7.67 | AA108: 7.67 | AB108: 7.67
V109: Y | W109: 酒類 | X109: 90.78 | Y109: 90.78 | Z109: 90.78 | AA109: 90.78 | AB109: 90.78

Sheet 產銷組合2
A1: 000858 五糧液
A2: 年月 | B2: 營業項目 | C2: 營業收入 | D2: 營收構成％ | I2: 加總 - 營收構成％ | J2: 營業項目
A3: 2013-12-31 | B3: 中國 | C3: 24556847 | D3: 100 | I3: 年月 | J3: 中國 | K3: 其他業務收入 | L3: 營收總計(含內部抵銷)
A4: 2013-12-31 | B4: 營收總計(含內部抵銷) | C4: 24556847 | I4: 2011-12-30 | J4: 99.08 | K4: 0.92
A5: 2013-06-28 | B5: 中國 | C5: 15477223 | D5: 99.73 | I5: 2012-06-29 | J5: 99.78 | K5: 0.22
A6: 2013-06-28 | B6: 其他業務收入 | C6: 42654 | D6: 0.27 | I6: 2012-12-31 | J6: 99.4 | K6: 0.6
A7: 2013-06-28 | B7: 營收總計(含內部抵銷) | C7: 15519878 | I7: 2013-12-31 | J7: 100
A8: 2012-12-31 | B8: 中國 | C8: 27038749 | D8: 99.4 | I8: 2013-06-28 | J8: 99.73 | K8: 0.27
A9: 2012-12-31 | B9: 其他業務收入 | C9: 162297 | D9: 0.6
A10: 2012-12-31 | B10: 營收總計(含內部抵銷) | C10: 27201046
A11: 2012-06-29 | B11: 中國 | C11: 15017324 | D11: 99.78
A12: 2012-06-29 | B12: 其他業務收入 | C12: 32385 | D12: 0.22
A13: 2012-06-29 | B13: 營收總計(含內部抵銷) | C13: 15049709
A14: 2011-12-30 | B14: 中國 | C14: 20163804 | D14: 99.08
A15: 2011-12-30 | B15: 其他業務收入 | C15: 186790 | D15: 0.92
A16: 2011-12-30 | B16: 營收總計(含內部抵銷) | C16: 20350594

Sheet 股價
A1: 000858 五糧液 | H1: 股價相關表格用 | M1: 週股價走勢－40W | R1: 月股價走勢－52M | W1: PE BAND | AC1: PB BAND
A2: MDATE | B2: 成交量(千股)_週 | C2: 收盤價(元) | D2: 報酬率％_週 | E2: 幣別 | H2: Data Field | I2: 2014-05-30 | L2: 年月日 | M2: 收盤價(元) | N2: 成交量(千股)_週 | Q2: 年月日 | R2: 收盤價(元) | S2: 市盈率-TEJ | T2: 市淨率-TEJ | W2: 5*PE | X2: 10*PE | Y2: 15*PE | Z2: 20*PE | AC2: 0.5*PB | AD2: 1*PB | AE2: 2*PB | AF2: 3*PB | AG2: 4*PB
A3: 2013-11-15 | B3: 122430 | C3: 16.6 | D3: 2.091 | E3: RMB | H3: 市盈率-TEJ | I3: 8.76 | L3: 2013-09-06 | M3: 18.67 | N3: 141603 | Q3: 2010-02-26 | R3: 28.04 | S3: 40.81 | T3: 7.79 | V3: =TEXT($Q3,"YYYY/MM") -> 2010/02 | W3: =5*$R3/$S3 -> 3.435432492 | X3: =10*$R3/$S3 -> 6.870864984 | Y3: =15*$R3/$S3 -> 10.30629748 | Z3: =20*$R3/$S3 -> 13.74172997 | AC3: =0.5*$R3/$T3 -> 1.799743261 | AD3: =1*$R3/$T3 -> 3.599486521 | AE3: =2*$R3/$T3 -> 7.198973042 | AF3: =3*$R3/$T3 -> 10.79845956 | AG3: =4*$R3/$T3 -> 14.39794608
A4: 2013-11-22 | B4: 77047 | C4: 16.56 | D4: -0.2409 | E4: RMB | H4: 市淨率-TEJ | I4: 1.6 | L4: 2013-09-13 | M4: 19.39 | N4: 153194 | Q4: 2010-03-31 | R4: 28.17 | S4: 41 | T4: 7.83 | V4: =TEXT($Q4,"YYYY/MM") -> 2010/03 | W4: =5*$R4/$S4 -> 3.435365854 | X4: =10*$R4/$S4 -> 6.870731707 | Y4: =15*$R4/$S4 -> 10.30609756 | Z4: =20*$R4/$S4 -> 13.74146341 | AC4: =0.5*$R4/$T4 -> 1.798850575 | AD4: =1*$R4/$T4 -> 3.597701149 | AE4: =2*$R4/$T4 -> 7.195402299 | AF4: =3*$R4/$T4 -> 10.79310345 | AG4: =4*$R4/$T4 -> 14.3908046
A5: 2013-11-29 | B5: 66896 | C5: 16.75 | D5: 1.1473 | E5: RMB | H5: 收盤價(元) | I5: 16.78 | L5: 2013-09-18 | M5: 18.45 | N5: 67844 | Q5: 2010-04-30 | R5: 26.29 | S5: 38.26 | T5: 7.31 | V5: 2010/04 | W5: 3.435703084 | X5: 6.871406168 | Y5: 10.30710925 | Z5: 13.74281234 | AC5: 1.798221614 | AD5: 3.596443228 | AE5: 7.192886457 | AF5: 10.78932969 | AG5: 14.38577291
A6: 2013-12-06 | B6: 79017 | C6: 16.86 | D6: 0.6567 | E6: RMB | H6: 回報率％ | I6: -0.0596 | L6: 2013-09-27 | M6: 17.96 | N6: 99611 | Q6: 2010-05-31 | R6: 24.86 | S6: 24.99 | T6: 5.83 | V6: 2010/05 | W6: 4.973989596 | X6: 9.947979192 | Y6: 14.92196879 | Z6: 19.89595838 | AC6: 2.132075472 | AD6: 4.264150943 | AE6: 8.528301887 | AF6: 12.79245283 | AG6: 17.05660377
A7: 2013-12-13 | B7: 60501 | C7: 16.34 | D7: -3.0843 | E7: RMB | H7: 成交量(千股) | I7: 4577 | L7: 2013-09-30 | M7: 18 | N7: 14096 | Q7: 2010-06-30 | R7: 24.23 | S7: 24.36 | T7: 5.68 | V7: 2010/06 | W7: 4.973316913 | X7: 9.946633826 | Y7: 14.91995074 | Z7: 19.89326765 | AC7: 2.132922535 | AD7: 4.26584507 | AE7: 8.531690141 | AF7: 12.79753521 | AG7: 17.06338028
A8: 2013-12-20 | B8: 61655 | C8: 15.2 | D8: -6.9767 | E8: RMB | H8: 成交值(千元) | I8: 77018 | L8: 2013-10-11 | M8: 17.88 | N8: 65613 | Q8: 2010-07-30 | R8: 27.78 | S8: 27.93 | T8: 6.51 | V8: 2010/07 | W8: 4.973147154 | X8: 9.946294307 | Y8: 14.91944146 | Z8: 19.89258861 | AC8: 2.133640553 | AD8: 4.267281106 | AE8: 8.534562212 | AF8: 12.80184332 | AG8: 17.06912442
A9: 2013-12-27 | B9: 67179 | C9: 15.19 | D9: -0.0658 | E9: RMB | H9: 券資比 | I9: 3.14 | L9: 2013-10-18 | M9: 18.03 | N9: 114476 | Q9: 2010-08-31 | R9: 31.72 | S9: 31.89 | T9: 7.44 | V9: 2010/08 | W9: 4.973345876 | X9: 9.946691753 | Y9: 14.92003763 | Z9: 19.89338351 | AC9: 2.13172043 | AD9: 4.26344086 | AE9: 8.52688172 | AF9: 12.79032258 | AG9: 17.05376344
A10: 2013-12-31 | B10: 51485 | C10: 15.66 | D10: 3.0942 | E10: RMB | H10: 總股數(千股) | I10: 3795967 | L10: 2013-10-25 | M10: 17.47 | N10: 84004 | Q10: 2010-09-30 | R10: 34.33 | S10: 31.1 | T10: 7.98 | V10: 2010/09 | W10: 5.519292605 | X10: 11.03858521 | Y10: 16.55787781 | Z10: 22.07717042 | AC10: 2.151002506 | AD10: 4.302005013 | AE10: 8.604010025 | AF10: 12.90601504 | AG10: 17.20802005
A11: 2014-01-03 | B11: 26609 | C11: 15.19 | D11: -3.0014 | E11: RMB | H11: 總市值(千元) | I11: 63696326 | L11: 2013-11-01 | M11: 16.15 | N11: 139895 | Q11: 2010-10-29 | R11: 36.5 | S11: 33.07 | T11: 8.48 | V11: 2010/10 | W11: 5.518596916 | X11: 11.03719383 | Y11: 16.55579075 | Z11: 22.07438766 | AC11: 2.152122642 | AD11: 4.304245283 | AE11: 8.608490566 | AF11: 12.91273585 | AG11: 17.21698113
A12: 2014-01-10 | B12: 96398 | C12: 14.66 | D12: -3.489 | E12: RMB | H12: CAPM_Beta 一月 | I12: 0.4392 | L12: 2013-11-08 | M12: 16.26 | N12: 84166 | Q12: 2010-11-30 | R12: 39.13 | S12: 32.17 | T12: 8.48 | V12: 2010/11 | W12: 6.081753186 | X12: 12.16350637 | Y12: 18.24525956 | Z12: 24.32701274 | AC12: 2.307193396 | AD12: 4.614386792 | AE12: 9.228773585 | AF12: 13.84316038 | AG12: 18.45754717
A13: 2014-01-17 | B13: 89183 | C13: 14.71 | D13: 0.3411 | E13: RMB | L13: 2013-11-15 | M13: 16.6 | N13: 122430 | Q13: 2010-12-31 | R13: 34.63 | S13: 28.47 | T13: 7.5 | V13: 2010/12 | W13: 6.081840534 | X13: 12.16368107 | Y13: 18.2455216 | Z13: 24.32736214 | AC13: 2.308666667 | AD13: 4.617333333 | AE13: 9.234666667 | AF13: 13.852 | AG13: 18.46933333
A14: 2014-01-24 | B14: 105936 | C14: 15.09 | D14: 2.5833 | E14: RMB | L14: 2013-11-22 | M14: 16.56 | N14: 77047 | Q14: 2011-01-31 | R14: 32.85 | S14: 27.01 | T14: 7.12 | V14: 2011/01 | W14: 6.081081081 | X14: 12.16216216 | Y14: 18.24324324 | Z14: 24.32432432 | AC14: 2.306882022 | AD14: 4.613764045 | AE14: 9.22752809 | AF14: 13.84129213 | AG14: 18.45505618
A15: 2014-01-30 | B15: 76909 | C15: 14.64 | D15: -2.9821 | E15: RMB | L15: 2013-11-29 | M15: 16.75 | N15: 66896 | Q15: 2011-02-28 | R15: 32.97 | S15: 27.11 | T15: 7.14 | V15: 2011/02 | W15: 6.080781999 | X15: 12.161564 | Y15: 18.242346 | Z15: 24.323128 | AC15: 2.308823529 | AD15: 4.617647059 | AE15: 9.235294118 | AF15: 13.85294118 | AG15: 18.47058824
A16: 2014-02-07 | B16: 10504 | C16: 14.7 | D16: 0.4098 | E16: RMB | L16: 2013-12-06 | M16: 16.86 | N16: 79017 | Q16: 2011-03-31 | R16: 31.89 | S16: 26.22 | T16: 6.91 | V16: 2011/03 | W16: 6.081235698 | X16: 12.1624714 | Y16: 18.24370709 | Z16: 24.32494279 | AC16: 2.307525326 | AD16: 4.615050651 | AE16: 9.230101302 | AF16: 13.84515195 | AG16: 18.4602026
A17: 2014-02-14 | B17: 129165 | C17: 15.52 | D17: 5.5783 | E17: RMB | H17: 股價相關表格用 | L17: 2013-12-13 | M17: 16.34 | N17: 60501 | Q17: 2011-04-29 | R17: 32.97 | S17: 27.11 | T17: 7.14 | V17: 2011/04 | W17: 6.080781999 | X17: 12.161564 | Y17: 18.242346 | Z17: 24.323128 | AC17: 2.308823529 | AD17: 4.617647059 | AE17: 9.235294118 | AF17: 13.85294118 | AG17: 18.47058824
A18: 2014-02-21 | B18: 187708 | C18: 15.95 | D18: 2.7707 | E18: RMB | H18: Data Field | I18: 2014-05-30 | L18: 2013-12-20 | M18: 15.2 | N18: 61655 | Q18: 2011-05-31 | R18: 33.01 | S18: 24.35 | T18: 6.09 | V18: 2011/05 | W18: 6.778234086 | X18: 13.55646817 | Y18: 20.33470226 | Z18: 27.11293634 | AC18: 2.710180624 | AD18: 5.420361248 | AE18: 10.8407225 | AF18: 16.26108374 | AG18: 21.68144499
A19: 2014-02-28 | B19: 92938 | C19: 15.27 | D19: -4.2634 | E19: RMB | H19: 60日最高(元) | I19: 18.17 | L19: 2013-12-27 | M19: 15.19 | N19: 67179 | Q19: 2011-06-30 | R19: 35.72 | S19: 26.35 | T19: 6.59 | V19: 2011/06 | W19: 6.777988615 | X19: 13.55597723 | Y19: 20.33396584 | Z19: 27.11195446 | AC19: 2.71016692 | AD19: 5.420333839 | AE19: 10.84066768 | AF19: 16.26100152 | AG19: 21.68133536
A20: 2014-03-07 | B20: 154709 | C20: 16.16 | D20: 5.8285 | E20: RMB | H20: 60日最低(元) | I20: 15.45 | L20: 2013-12-31 | M20: 15.66 | N20: 51485 | Q20: 2011-07-29 | R20: 38 | S20: 28.03 | T20: 7.01 | V20: 2011/07 | W20: 6.778451659 | X20: 13.55690332 | Y20: 20.33535498 | Z20: 27.11380664 | AC20: 2.710413695 | AD20: 5.420827389 | AE20: 10.84165478 | AF20: 16.26248217 | AG20: 21.68330956
A21: 2014-03-14 | B21: 307144 | C21: 17.58 | D21: 8.787 | E21: RMB | L21: 2014-01-03 | M21: 15.19 | N21: 26609 | Q21: 2011-08-31 | R21: 40.4 | S21: 29.8 | T21: 7.46 | V21: 2011/08 | W21: 6.77852349 | X21: 13.55704698 | Y21: 20.33557047 | Z21: 27.11409396 | AC21: 2.707774799 | AD21: 5.415549598 | AE21: 10.8310992 | AF21: 16.24664879 | AG21: 21.66219839
A22: 2014-03-21 | B22: 184436 | C22: 17.4 | D22: -1.0237 | E22: RMB | L22: 2014-01-10 | M22: 14.66 | N22: 96398 | Q22: 2011-09-30 | R22: 36.3 | S22: 24.13 | T22: 6.65 | V22: 2011/09 | W22: 7.521757149 | X22: 15.0435143 | Y22: 22.56527145 | Z22: 30.0870286 | AC22: 2.729323308 | AD22: 5.458646617 | AE22: 10.91729323 | AF22: 16.37593985 | AG22: 21.83458647
A23: 2014-03-28 | B23: 119210 | C23: 16.6 | D23: -4.5977 | E23: RMB | L23: 2014-01-17 | M23: 14.71 | N23: 89183 | Q23: 2011-10-31 | R23: 36.69 | S23: 24.39 | T23: 6.72 | V23: 2011/10 | W23: 7.521525215 | X23: 15.04305043 | Y23: 22.56457565 | Z23: 30.08610086 | AC23: 2.729910714 | AD23: 5.459821429 | AE23: 10.91964286 | AF23: 16.37946429 | AG23: 21.83928571
A24: 2014-04-04 | B24: 83558 | C24: 17.17 | D24: 3.4338 | E24: RMB | H24: 報酬率圖使用 | L24: 2014-01-24 | M24: 15.09 | N24: 105936 | Q24: 2011-11-30 | R24: 37.53 | S24: 23.62 | T24: 6.41 | V24: 2011/11 | W24: 7.944538527 | X24: 15.88907705 | Y24: 23.83361558 | Z24: 31.77815411 | AC24: 2.927457098 | AD24: 5.854914197 | AE24: 11.70982839 | AF24: 17.56474259 | AG24: 23.41965679
A25: 2014-04-11 | B25: 107888 | C25: 18.17 | D25: 5.8241 | E25: RMB | H25: Data Field | I25: 2014-05-30 | L25: 2014-01-30 | M25: 14.64 | N25: 76909 | Q25: 2011-12-30 | R25: 32.8 | S25: 20.65 | T25: 5.6 | V25: 2011/12 | W25: 7.94188862 | X25: 15.88377724 | Y25: 23.82566586 | Z25: 31.76755448 | AC25: 2.928571429 | AD25: 5.857142857 | AE25: 11.71428571 | AF25: 17.57142857 | AG25: 23.42857143
A26: 2014-04-18 | B26: 62370 | C26: 17.66 | D26: -2.8069 | E26: RMB | H26: 未調整收盤價(元) | I26: 16.78 | L26: 2014-02-07 | M26: 14.7 | N26: 10504 | Q26: 2012-01-31 | R26: 31.99 | S26: 20.14 | T26: 5.46 | V26: 2012/01 | W26: 7.941906653 | X26: 15.88381331 | Y26: 23.82571996 | Z26: 31.76762661 | AC26: 2.929487179 | AD26: 5.858974359 | AE26: 11.71794872 | AF26: 17.57692308 | AG26: 23.43589744
A27: 2014-04-25 | B27: 83209 | C27: 17.24 | D27: -2.3783 | E27: RMB | H27: 日回報率 % | I27: -0.0596 | L27: 2014-02-14 | M27: 15.52 | N27: 129165 | Q27: 2012-02-29 | R27: 35.24 | S27: 22.18 | T27: 6.02 | V27: 2012/02 | W27: 7.944093778 | X27: 15.88818756 | Y27: 23.83228133 | Z27: 31.77637511 | AC27: 2.926910299 | AD27: 5.853820598 | AE27: 11.7076412 | AF27: 17.56146179 | AG27: 23.41528239
A28: 2014-04-30 | B28: 44597 | C28: 17.6 | D28: 2.0881 | E28: RMB | H28: 週回報率 % | I28: 1.6969 | L28: 2014-02-21 | M28: 15.95 | N28: 187708 | Q28: 2012-03-30 | R28: 32.84 | S28: 20.67 | T28: 5.61 | V28: 2012/03 | W28: 7.943880019 | X28: 15.88776004 | Y28: 23.83164006 | Z28: 31.77552008 | AC28: 2.926916221 | AD28: 5.853832442 | AE28: 11.70766488 | AF28: 17.56149733 | AG28: 23.41532977
A29: 2014-05-09 | B29: 47260 | C29: 16.91 | D29: -3.9204 | E29: RMB | H29: 月回報率 % | I29: -4.6589 | L29: 2014-02-28 | M29: 15.27 | N29: 92938 | Q29: 2012-04-27 | R29: 35.62 | S29: 22.42 | T29: 6.08 | V29: 2012/04 | W29: 7.943800178 | X29: 15.88760036 | Y29: 23.83140054 | Z29: 31.77520071 | AC29: 2.929276316 | AD29: 5.858552632 | AE29: 11.71710526 | AF29: 17.57565789 | AG29: 23.43421053
A30: 2014-05-16 | B30: 54953 | C30: 16.82 | D30: -0.5322 | E30: RMB | H30: 季回報率 % | I30: 9.889 | L30: 2014-03-07 | M30: 16.16 | N30: 154709 | Q30: 2012-05-31 | R30: 32.25 | S30: 16.54 | T30: 4.61 | V30: 2012/05 | W30: 9.749093108 | X30: 19.49818622 | Y30: 29.24727932 | Z30: 38.99637243 | AC30: 3.497830803 | AD30: 6.995661605 | AE30: 13.99132321 | AF30: 20.98698482 | AG30: 27.98264642
A31: 2014-05-23 | B31: 56798 | C31: 16.5 | D31: -1.9024 | E31: RMB | H31: 年回報率 % | I31: -27.566 | L31: 2014-03-14 | M31: 17.58 | N31: 307144 | Q31: 2012-06-29 | R31: 32.76 | S31: 16.81 | T31: 4.68 | V31: 2012/06 | W31: 9.744199881 | X31: 19.48839976 | Y31: 29.23259964 | Z31: 38.97679952 | AC31: 3.5 | AD31: 7 | AE31: 14 | AF31: 21 | AG31: 28
A32: 2014-05-30 | B32: 35270 | C32: 16.78 | D32: 1.6969 | E32: RMB | H32: 與大盤比%-日回報率 | I32: -0.3605 | L32: 2014-03-21 | M32: 17.4 | N32: 184436 | Q32: 2012-07-31 | R32: 35 | S32: 17.95 | T32: 5 | V32: 2012/07 | W32: 9.749303621 | X32: 19.49860724 | Y32: 29.24791086 | Z32: 38.99721448 | AC32: 3.5 | AD32: 7 | AE32: 14 | AF32: 21 | AG32: 28
H33: 與大盤比%-週回報率 | I33: 0.4142 | L33: 2014-03-28 | M33: 16.6 | N33: 119210 | Q33: 2012-08-31 | R33: 32.57 | S33: 16.71 | T33: 4.65 | V33: 2012/08 | W33: 9.745661281 | X33: 19.49132256 | Y33: 29.23698384 | Z33: 38.98264512 | AC33: 3.502150538 | AD33: 7.004301075 | AE33: 14.00860215 | AF33: 21.01290323 | AG33: 28.0172043
H34: 與大盤比%-月回報率 | I34: -7.0271 | L34: 2014-04-04 | M34: 17.17 | N34: 83558 | Q34: 2012-09-28 | R34: 33.9 | S34: 15.8 | T34: 4.81 | V34: 2012/09 | W34: 10.7278481 | X34: 21.4556962 | Y34: 32.1835443 | Z34: 42.91139241 | AC34: 3.523908524 | AD34: 7.047817048 | AE34: 14.0956341 | AF34: 21.14345114 | AG34: 28.19126819
H35: 與大盤比%-季回報率 | I35: 13.7597 | L35: 2014-04-11 | M35: 18.17 | N35: 107888 | Q35: 2012-10-31 | R35: 33.6 | S35: 15.66 | T35: 4.77 | V35: 2012/10 | W35: 10.72796935 | X35: 21.4559387 | Y35: 32.18390805 | Z35: 42.91187739 | AC35: 3.522012579 | AD35: 7.044025157 | AE35: 14.08805031 | AF35: 21.13207547 | AG35: 28.17610063
H36: 與大盤比%-年回報率 | I36: -28.2724 | L36: 2014-04-18 | M36: 17.66 | N36: 62370 | Q36: 2012-11-30 | R36: 26.97 | S36: 10.77 | T36: 3.46 | V36: 2012/11 | W36: 12.52089136 | X36: 25.04178273 | Y36: 37.56267409 | Z36: 50.08356546 | AC36: 3.897398844 | AD36: 7.794797688 | AE36: 15.58959538 | AF36: 23.38439306 | AG36: 31.17919075
L37: 2014-04-25 | M37: 17.24 | N37: 83209 | Q37: 2012-12-31 | R37: 28.23 | S37: 11.27 | T37: 3.62 | V37: 2012/12 | W37: 12.52440106 | X37: 25.04880213 | Y37: 37.57320319 | Z37: 50.09760426 | AC37: 3.899171271 | AD37: 7.798342541 | AE37: 15.59668508 | AF37: 23.39502762 | AG37: 31.19337017
L38: 2014-04-30 | M38: 17.6 | N38: 44597 | Q38: 2013-01-31 | R38: 25.5 | S38: 10.18 | T38: 3.27 | V38: 2013/01 | W38: 12.52455796 | X38: 25.04911591 | Y38: 37.57367387 | Z38: 50.09823183 | AC38: 3.899082569 | AD38: 7.798165138 | AE38: 15.59633028 | AF38: 23.39449541 | AG38: 31.19266055
L39: 2014-05-09 | M39: 16.91 | N39: 47260 | Q39: 2013-02-28 | R39: 24.44 | S39: 9.76 | T39: 3.13 | V39: 2013/02 | W39: 12.5204918 | X39: 25.04098361 | Y39: 37.56147541 | Z39: 50.08196721 | AC39: 3.904153355 | AD39: 7.808306709 | AE39: 15.61661342 | AF39: 23.42492013 | AG39: 31.23322684
H40: Data Field | I40: 2014-03-31 | L40: 2014-05-16 | M40: 16.82 | N40: 54953 | Q40: 2013-03-29 | R40: 22.34 | S40: 8.92 | T40: 2.86 | V40: 2013/03 | W40: 12.52242152 | X40: 25.04484305 | Y40: 37.56726457 | Z40: 50.0896861 | AC40: 3.905594406 | AD40: 7.811188811 | AE40: 15.62237762 | AF40: 23.43356643 | AG40: 31.24475524
H41: 每股盈餘 (元) | I41: 0.69 | L41: 2014-05-23 | M41: 16.5 | N41: 56798 | Q41: 2013-04-26 | R41: 21.95 | S41: 8.76 | T41: 2.81 | V41: 2013/04 | W41: 12.52853881 | X41: 25.05707763 | Y41: 37.58561644 | Z41: 50.11415525 | AC41: 3.90569395 | AD41: 7.8113879 | AE41: 15.6227758 | AF41: 23.4341637 | AG41: 31.2455516
H42: 每股淨值 (A) | I42: 10.2 | L42: 2014-05-30 | M42: 16.78 | N42: 35270 | Q42: 2013-05-31 | R42: 23.75 | S42: 8.23 | T42: 2.56 | V42: 2013/05 | W42: 14.42891859 | X42: 28.85783718 | Y42: 43.28675577 | Z42: 57.71567436 | AC42: 4.638671875 | AD42: 9.27734375 | AE42: 18.5546875 | AF42: 27.83203125 | AG42: 37.109375
Q43: 2013-06-28 | R43: 20.04 | S43: 6.94 | T43: 2.16 | V43: 2013/06 | W43: 14.43804035 | X43: 28.87608069 | Y43: 43.31412104 | Z43: 57.75216138 | AC43: 4.638888889 | AD43: 9.277777778 | AE43: 18.55555556 | AF43: 27.83333333 | AG43: 37.11111111
Q44: 2013-07-31 | R44: 18.95 | S44: 6.57 | T44: 2.04 | V44: 2013/07 | W44: 14.42161339 | X44: 28.84322679 | Y44: 43.26484018 | Z44: 57.68645358 | AC44: 4.644607843 | AD44: 9.289215686 | AE44: 18.57843137 | AF44: 27.86764706 | AG44: 37.15686275
Q45: 2013-08-30 | R45: 19.37 | S45: 6.71 | T45: 2.08 | V45: 2013/08 | W45: 14.43368107 | X45: 28.86736215 | Y45: 43.30104322 | Z45: 57.73472429 | AC45: 4.65625 | AD45: 9.3125 | AE45: 18.625 | AF45: 27.9375 | AG45: 37.25
Q46: 2013-09-30 | R46: 18 | S46: 6.14 | T46: 1.98 | V46: 2013/09 | W46: 14.65798046 | X46: 29.31596091 | Y46: 43.97394137 | Z46: 58.63192182 | AC46: 4.545454545 | AD46: 9.090909091 | AE46: 18.18181818 | AF46: 27.27272727 | AG46: 36.36363636
Q47: 2013-10-31 | R47: 16.31 | S47: 5.56 | T47: 1.79 | V47: 2013/10 | W47: 14.66726619 | X47: 29.33453237 | Y47: 44.00179856 | Z47: 58.66906475 | AC47: 4.555865922 | AD47: 9.111731844 | AE47: 18.22346369 | AF47: 27.33519553 | AG47: 36.44692737
Q48: 2013-11-29 | R48: 16.75 | S48: 6.6 | T48: 1.77 | V48: 2013/11 | W48: 12.68939394 | X48: 25.37878788 | Y48: 38.06818182 | Z48: 50.75757576 | AC48: 4.731638418 | AD48: 9.463276836 | AE48: 18.92655367 | AF48: 28.38983051 | AG48: 37.85310734
Q49: 2013-12-31 | R49: 15.66 | S49: 6.17 | T49: 1.65 | V49: 2013/12 | W49: 12.6904376 | X49: 25.3808752 | Y49: 38.0713128 | Z49: 50.76175041 | AC49: 4.745454545 | AD49: 9.490909091 | AE49: 18.98181818 | AF49: 28.47272727 | AG49: 37.96363636
Q50: 2014-01-30 | R50: 14.64 | S50: 5.77 | T50: 1.55 | V50: 2014/01 | W50: 12.68630849 | X50: 25.37261698 | Y50: 38.05892548 | Z50: 50.74523397 | AC50: 4.722580645 | AD50: 9.44516129 | AE50: 18.89032258 | AF50: 28.33548387 | AG50: 37.78064516
Q51: 2014-02-28 | R51: 15.27 | S51: 6.02 | T51: 1.61 | V51: 2014/02 | W51: 12.68272425 | X51: 25.3654485 | Y51: 38.04817276 | Z51: 50.73089701 | AC51: 4.742236025 | AD51: 9.48447205 | AE51: 18.9689441 | AF51: 28.45341615 | AG51: 37.9378882
Q52: 2014-03-31 | R52: 16.67 | S52: 6.57 | T52: 1.76 | V52: 2014/03 | W52: 12.68645358 | X52: 25.37290715 | Y52: 38.05936073 | Z52: 50.74581431 | AC52: 4.735795455 | AD52: 9.471590909 | AE52: 18.94318182 | AF52: 28.41477273 | AG52: 37.88636364
Q53: 2014-04-30 | R53: 17.6 | S53: 6.94 | T53: 1.86 | V53: 2014/04 | W53: 12.68011527 | X53: 25.36023055 | Y53: 38.04034582 | Z53: 50.7204611 | AC53: 4.731182796 | AD53: 9.462365591 | AE53: 18.92473118 | AF53: 28.38709677 | AG53: 37.84946237
Q54: 2014-05-30 | R54: 16.78 | S54: 8.76 | T54: 1.6 | V54: 2014/05 | W54: 9.577625571 | X54: 19.15525114 | Y54: 28.73287671 | Z54: 38.31050228 | AC54: 5.24375 | AD54: 10.4875 | AE54: 20.975 | AF54: 31.4625 | AG54: 41.95

Sheet IS
A1: 000858 五糧液 | B1: =TEXT(B$2,"yyyy/mm") -> 2012/09 | C1: 2012/12 | D1: 2013/03 | E1: 2013/06 | F1: 2013/09 | G1: 2013/12 | H1: 2014/03 | K1: 累計資料
A2: Data Field | B2: 2012-09-28 | C2: 2012-12-31 | D2: 2013-03-29 | E2: 2013-06-28 | F2: 2013-09-30 | G2: 2013-12-31 | H2: 2014-03-31 | K2: Data Field | L2: 2011-12-30 | M2: 2012-12-31 | N2: 2013-12-31 | O2: 2014-03-31
A3: 合併(Y/N) | B3: Y | C3: Y | D3: Y | E3: Y | F3: Y | G3: Y | H3: Y | K3: 合併(Y/N) | L3: Y | M3: Y | N3: Y | O3: Y
A4: 幣別 | B4: RMB | C4: RMB | D4: RMB | E4: RMB | F4: RMB | G4: RMB | H4: RMB | K4: 幣別 | L4: RMB | M4: RMB | N4: RMB | O4: RMB
A5: 營業總收入 | B5: 6076894 | C5: 6074443 | D5: 8675800 | E5: 6844078 | F5: 3645959 | G5: 5552752 | H5: 6719852 | K5: 營業總收入 | L5: 4701820 | M5: 6074443 | N5: 5552752 | O5: 6719852
A6: 營業成本 | B6: 1223336 | C6: 1540103 | D6: 2033065 | E6: 2343632 | F6: 962754 | G6: 1270960 | H6: 1682005 | K6: 營業成本 | L6: 1576599 | M6: 1540103 | N6: 1270960 | O6: 1682005
A7: 業務稅金及附加 | B7: 432219 | C7: 447677 | D7: 587146 | E7: 510423 | F7: 261577 | G7: 489885 | H7: 448818 | K7: 業務稅金及附加 | L7: 380899 | M7: 447677 | N7: 489885 | O7: 448818
A8: 銷售費用 | B8: 389764 | C8: 654076 | D8: 504185 | E8: 690857 | F8: 356989 | G8: 1830146 | H8: 638102 | K8: 銷售費用 | L8: 589694 | M8: 654076 | N8: 1830146 | O8: 638102
A9: 管理費用 | B9: 486281 | C9: 600195 | D9: 577974 | E9: 507720 | F9: 435537 | G9: 742407 | H9: 533716 | K9: 管理費用 | L9: 493421 | M9: 600195 | N9: 742407 | O9: 533716
A10: 研發費用 | B10: 0 | C10: 0 | D10: 0 | E10: 0 | F10: 0 | G10: 0 | H10: 0 | K10: 研發費用 | L10: 0 | M10: 0 | N10: 0 | O10: 0
A11: 財務費用 | B11: -220084 | C11: -169257 | D11: -238664 | E11: -233281 | F11: -187459 | G11: -167476 | H11: -245116 | K11: 財務費用 | L11: -241482 | M11: -169257 | N11: -167476 | O11: -245116
A12: 其他費用 | B12: 0 | C12: 0 | D12: 0 | E12: 0 | F12: 0 | G12: 0 | H12: 0 | K12: 其他費用 | L12: 0 | M12: 0 | N12: 0 | O12: 0
A13: 資產減值損失 | B13: 0 | C13: 2697 | D13: 0 | E13: 0 | F13: 127 | G13: 4880 | H13: 0 | K13: 資產減值損失 | L13: 19156 | M13: 2697 | N13: 4880 | O13: 0
A14: 公允價值變動收益 | B14: -1003 | C14: 3712 | D14: -1175 | E14: -5896 | F14: 0 | G14: 0 | H14: 0 | K14: 公允價值變動收益 | L14: 478 | M14: 3712 | N14: 0 | O14: 0
A15: 投資收益 | B15: 67 | C15: 3925 | D15: 0 | E15: -2465 | F15: 0 | G15: 6764 | H15: 0 | K15: 投資收益 | L15: 6204 | M15: 3925 | N15: 6764 | O15: 0
A16: 其中: 對聯營合營企業的投資收益 | B16: 0 | C16: 3925 | D16: 0 | E16: -6198 | F16: 0 | G16: 6764 | H16: 0 | K16: 其中: 對聯營合營企業的投資收益 | L16: 2110 | M16: 3925 | N16: 6764 | O16: 0
A17: 期貨收益 | B17: 0 | C17: 0 | D17: 0 | E17: 0 | F17: 0 | G17: 0 | H17: 0 | K17: 期貨收益 | L17: 0 | M17: 0 | N17: 0 | O17: 0
A18: 匯兌收益 | B18: 0 | C18: 0 | D18: 0 | E18: 0 | F18: 0 | G18: 0 | H18: 0 | K18: 匯兌收益 | L18: 0 | M18: 0 | N18: 0 | O18: 0
A19: 其他收益 | B19: 0 | C19: 0 | D19: 0 | E19: 0 | F19: 0 | G19: 0 | H19: 0 | K19: 其他收益 | L19: 0 | M19: 0 | N19: 0 | O19: 0
A20: 營業利潤 | B20: 3764442 | C20: 3006589 | D20: 5210919 | E20: 3016366 | F20: 1816434 | G20: 1388714 | H20: 3662327 | K20: 營業利潤 | L20: 1890215 | M20: 3006589 | N20: 1388714 | O20: 3662327
A21: 營業外收入 | B21: 12360 | C21: 25401 | D21: 16078 | E21: 10223 | F21: 14810 | G21: 24785 | H21: 15209 | K21: 營業外收入 | L21: 16634 | M21: 25401 | N21: 24785 | O21: 15209
A22: 營業外支出 | B22: 15729 | C22: 8147 | D22: 205731 | E22: 29014 | F22: 5638 | G22: 10867 | H22: 9220 | K22: 營業外支出 | L22: 24415 | M22: 8147 | N22: 10867 | O22: 9220
A23: 其中: 非流動資產處置損失 | B23: 185 | C23: 500 | D23: 0 | E23: 4 | F23: 207 | G23: 2444 | H23: 2952 | K23: 其中: 非流動資產處置損失 | L23: 7214 | M23: 500 | N23: 2444 | O23: 2952
A24: 利潤總額 | B24: 3761073 | C24: 3023843 | D24: 5021266 | E24: 2997575 | F24: 1825606 | G24: 1402632 | H24: 3668316 | K24: 利潤總額 | L24: 1882434 | M24: 3023843 | N24: 1402632 | O24: 3668316
A25: 所得稅費用 | B25: 888831 | C25: 801715 | D25: 1234975 | E25: 743881 | F25: 454905 | G25: 491103 | H25: 932767 | K25: 所得稅費用 | L25: 489323 | M25: 801715 | N25: 491103 | O25: 932767
A26: 未確認投資損益 | B26: 0 | C26: 0 | D26: 0 | E26: 0 | F26: 0 | G26: 0 | H26: 0 | K26: 未確認投資損益 | L26: 0 | M26: 0 | N26: 0 | O26: 0
A27: 其他調整項 | B27: 0 | C27: 0 | D27: 0 | E27: 0 | F27: 0 | G27: 0 | H27: 0 | K27: 其他調整項 | L27: 0 | M27: 0 | N27: 0 | O27: 0
A28: 淨利潤 | B28: 2872242 | C28: 2222128 | D28: 3786291 | E28: 2253694 | F28: 1370701 | G28: 911529 | H28: 2735549 | K28: 淨利潤 | L28: 1393111 | M28: 2222128 | N28: 911529 | O28: 2735549
A29: 歸屬於母公司所有者的淨利潤 | B29: 2755615 | C29: 2133003 | D29: 3626866 | E29: 2164168 | F29: 1312813 | G29: 868968 | H29: 2619140 | K29: 歸屬於母公司所有者的淨利潤 | L29: 1339252 | M29: 2133003 | N29: 868968 | O29: 2619140
A30: 少數股東損益 | B30: 116627 | C30: 89125 | D30: 159425 | E30: 89526 | F30: 57888 | G30: 42561 | H30: 116409 | K30: 少數股東損益 | L30: 53859 | M30: 89125 | N30: 42561 | O30: 116409
A31: 職工福利獎勵基金 | B31: 0 | C31: 0 | D31: 0 | E31: 0 | F31: 0 | G31: 0 | H31: 0 | K31: 職工福利獎勵基金 | L31: 0 | M31: 0 | N31: 0 | O31: 0
A32: 合併方合併前的淨利潤 | B32: 0 | C32: 0 | D32: 0 | E32: 0 | F32: 0 | G32: 0 | H32: 0 | K32: 合併方合併前的淨利潤 | L32: 0 | M32: 0 | N32: 0 | O32: 0
A33: 基本每股收益(元) | B33: 0.73 | C33: 0.56 | D33: 0.95 | E33: 0.57 | F33: 0.35 | G33: 0.23 | H33: 0.69 | K33: 基本每股收益(元) | L33: 0.35 | M33: 0.56 | N33: 0.23 | O33: 0.69
A34: 加權平均股數(仟股) | B34: 3795967 | C34: 3795967 | D34: 3795967 | E34: 3795967 | F34: 3795967 | G34: 3795967 | H34: 3795967 | K34: 加權平均股數(仟股) | L34: 3795967 | M34: 3795967 | N34: 3795967 | O34: 3795967
A35: 當季特別股股息 | B35: 0 | C35: 0 | D35: 0 | E35: 0 | F35: 0 | G35: 0 | H35: 0 | K35: 當季特別股股息 | L35: 0 | M35: 0 | N35: 0 | O35: 0
A36: 已發行普通股股數(仟股) | B36: 3795967 | C36: 3795967 | D36: 3795967 | E36: 3795967 | F36: 3795967 | G36: 3795967 | H36: 3795967 | K36: 已發行普通股股數(仟股) | L36: 3795967 | M36: 3795967 | N36: 3795967 | O36: 3795967
A37: 已發行特別股股數(仟股) | B37: 0 | C37: 0 | D37: 0 | E37: 0 | F37: 0 | G37: 0 | H37: 0 | K37: 已發行特別股股數(仟股) | L37: 0 | M37: 0 | N37: 0 | O37: 0
A38: 其他綜合收益 | B38: 0 | C38: 0 | D38: 0 | E38: 0 | F38: 0 | G38: 0 | H38: 0 | K38: 其他綜合收益 | L38: 0 | M38: 0 | N38: 0 | O38: 0
A39: 綜合收益總額 | B39: 2872242 | C39: 2222128 | D39: 3786291 | E39: 2253694 | F39: 1370701 | G39: 911529 | H39: 2735549 | K39: 綜合收益總額 | L39: 1393111 | M39: 2222128 | N39: 911529 | O39: 2735549
A40: 歸屬於母公司所有者綜合收益總額 | B40: 2755615 | C40: 2133003 | D40: 3626866 | E40: 2164168 | F40: 1312813 | G40: 868968 | H40: 2619140 | K40: 歸屬於母公司所有者綜合收益總額 | L40: 1339252 | M40: 2133003 | N40: 868968 | O40: 2619140
A41: 歸屬於少數股東的綜合收益總額 | B41: 116627 | C41: 89125 | D41: 159425 | E41: 89526 | F41: 57888 | G41: 42561 | H41: 116409 | K41: 歸屬於少數股東的綜合收益總額 | L41: 53859 | M41: 89125 | N41: 42561 | O41: 116409
A42: 稅後淨利成長率 | B42: 89.31 | C42: 59.27 | D42: 18.91 | E42: 8.42 | F42: -52.36 | G42: -59.26 | H42: -27.79 | K42: 稅後淨利成長率 | L42: 33.93 | M42: 59.27 | N42: -59.26 | O42: -27.79
A43: 營收成長率 | B43: 20.7 | C43: 30.69 | D43: 5.41 | E43: 0.3 | F43: -39.73 | G43: -8.59 | H43: -22.54 | K43: 營收成長率 | L43: 14.33 | M43: 30.69 | N43: -8.59 | O43: -22.54
A44: 營業毛利率 | B44: 79.48 | C44: 76.54 | D44: 76.57 | E44: 66.09 | F44: 72.9 | G44: 79.07 | H44: 74.97 | K44: 營業毛利率 | L44: 68.94 | M44: 76.54 | N44: 79.07 | O44: 74.97
A45: 營業利益率 | B45: 61.66 | C45: 50.67 | D45: 60.08 | E45: 44.42 | F45: 49.35 | G45: 25.61 | H45: 54.5 | K45: 營業利益率 | L45: 41.97 | M45: 50.67 | N45: 25.61 | O45: 54.5
A46: 稅前淨利率 | B46: 61.59 | C46: 51.04 | D46: 57.88 | E46: 44.02 | F46: 49.6 | G46: 25.9 | H46: 54.59 | K46: 稅前淨利率 | L46: 41.53 | M46: 51.04 | N46: 25.9 | O46: 54.59
A47: 稅後淨利率 | B47: 45.12 | C47: 36 | D47: 41.8 | E47: 31.78 | F47: 35.67 | G47: 16.05 | H47: 38.98 | K47: 稅後淨利率 | L47: 29.54 | M47: 36 | N47: 16.05 | O47: 38.98
A48: 每股淨值(A) | B48: 7.64 | C48: 8.21 | D48: 9.16 | E48: 8.93 | F48: 9.28 | G48: 9.51 | H48: 10.2 | K48: 每股淨值(A) | L48: 6.09 | M48: 8.21 | N48: 9.51 | O48: 10.2
A49: ROE(A)-(稅後) | B49: 10.19 | C49: 7.27 | D49: 11.34 | E49: 6.46 | F49: 3.89 | G49: 2.5 | H49: 7.13 | K49: ROE(A)-(稅後) | L49: 6.1 | M49: 7.27 | N49: 2.5 | O49: 7.13
C53: =C1-B1 -> 91 | D53: 90 | E53: 92 | F53: 92 | G53: 91 | H53: 90

Sheet BS
A1: 000858 五糧液 | B1: =TEXT(B$2,"yyyy/mm") -> 2011/12 | C1: 2012/12 | D1: 2013/12 | E1: 2014/03 | F1: 1900/01 | G1: 1900/01
A2: Data Field | B2: 2011-12-30 | C2: 2012-12-31 | D2: 2013-12-31 | E2: 2014-03-31
A3: 合併(Y/N) | B3: Y | C3: Y | D3: Y | E3: Y
A4: 幣別 | B4: RMB | C4: RMB | D4: RMB | E4: RMB
A5: 流動資產 | B5: 29713141 | C5: 37922333 | D5: 36942220 | E5: 39574777
A6: 長期投資 | B6: 130875 | C6: 120351 | D6: 120577 | E6: 840577
A7: 固定資產 | B7: 6697166 | C7: 6353691 | D7: 6130036 | E7: 6043033
A8: 其他資產 | B8: 364659 | C8: 851261 | D8: 936669 | E8: 858945
A9: 資產總額 | B9: 36905841 | C9: 45247636 | D9: 44129502 | E9: 47317332
A10: 流動負債 | B10: 13409431 | C10: 13666976 | D10: 7042604 | E10: 7496845
A11: 長期負債 | B11: 0 | C11: 0 | D11: 0 | E11: 0
A12: 其他負債及準備 | B12: 49721 | C12: 59589 | D12: 67613 | E12: 65654
A13: 負債總額 | B13: 13459152 | C13: 13726565 | D13: 7110217 | E13: 7562499
A14: 普通股股本 | B14: 3795967 | C14: 3795967 | D14: 3795967 | E14: 3795967
A15: 特別股股本 | B15: 0 | C15: 0 | D15: 0 | E15: 0
A16: 預收股款 | B16: 0 | C16: 0 | D16: 0 | E16: 0
A17: 增資準備 | B17: 0 | C17: 0 | D17: 0 | E17: 0
A18: 資本公積 | B18: 953203 | C18: 953203 | D18: 953203 | E18: 953203
A19: 法定盈餘公積 | B19: 3368960 | C19: 4356977 | D19: 5678791 | E19: 5678791
A20: 特別盈餘公積 | B20: 0 | C20: 0 | D20: 0 | E20: 0
A21: 未分配盈餘 | B21: 15001579 | C21: 22050451 | D21: 25664678 | E21: 28283819
A22: 少數股權 | B22: 326980 | C22: 364473 | D22: 926645 | E22: 1043053
A23: 股東權益總額 | B23: 23446689 | C23: 31521071 | D23: 37019285 | E23: 39754833
A24: 負債及股東權益總額 | B24: 36905841 | C24: 45247636 | D24: 44129502 | E24: 47317332
A25: 營業收入淨額 | B25: 20182025 | C25: 27050987 | D25: 24581239 | E25: 6719852
A26: 營業成本 | B26: 6726842 | C26: 7865665 | D26: 6473061 | E26: 1682005
A27: 營業毛利 | B27: 13455183 | C27: 19185322 | D27: 18108178 | E27: 5037847
A28: 營業費用 | B28: 3820676 | C28: 4268150 | D28: 5645815 | E28: 1171818
A29: 營業利益 | B29: 8509450 | C29: 13701053 | D29: 11440212 | E29: 3662327
A30: 營業外收入合計 | B30: 5955 | C30: 13392 | D30: 50548 | E30: 15209
A31: 營業外支出合計 | B31: 54437 | C31: 28398 | D31: 251250 | E31: 9220
A32: 稅前淨利 | B32: 8499954 | C32: 13738666 | D32: 11247079 | E32: 3668316
A33: 所得稅費用 | B33: 2105577 | C33: 3402932 | D33: 2924864 | E33: 932767
A34: 少數股權淨利 | B34: 236912 | C34: 400861 | D34: 349400 | E34: 116409
A35: 本期稅後淨利 | B35: 6394377 | C35: 10335734 | D35: 8322215 | E35: 2735549
A36: 流動比率 | B36: 221.58 | C36: 277.47 | D36: 524.55 | E36: 527.89
A37: 速動比率 | B37: 178.4 | C37: 226.7 | D37: 423.75 | E37: 431.54
A38: 負債比率 | B38: 36.47 | C38: 30.34 | D38: 16.11 | E38: 15.98
A39: 每股淨值 (A) | B39: 6.09 | C39: 8.21 | D39: 9.51 | E39: 10.2
A40: 應收帳款收現天數 | B40: 38.74 | C40: 31.64 | D40: 47.34 | E40: 87.68
A41: 平均售貨天數 | B41: 272.69 | C41: 283.45 | D41: 382.47 | E41: 377.73
A42: 來自營運之現金流量 | B42: 9533023 | C42: 8749667 | D42: 1458911 | E42: -2201725
A43: 投資活動之現金流量 | B43: -613472 | C43: -341375 | D43: -321882 | E43: -784913
A44: 融資活動之現金流量 | B44: -1503137 | C44: -2113851 | D44: -3219033 | E44: -1
A45: 本期產生現金流量 | B45: 7416403 | C45: 6294646 | D45: -2082012 | E45: -2986639
A46: 每股現金流量 | B46: 2.51 | C46: 2.3 | D46: 0.38 | E46: -0.58

Sheet 融資券
A1: 000858 五糧液
A2: 年月日 | B2: 個股收盤價 | C2: 融資餘額 | D2: 融資變動率 | E2: 融資(買+賣)/成交量 | F2: 融券餘額(股) | G2: 融券變動率 | H2: 融券(買+賣)/成交量 | J2: 融資餘額(千)
A3: 2014-05-30 | B3: 16.78 | C3: 832804441 | D3: -1.242 | E3: 12.8209 | F3: 1553953 | G3: -0.995 | H3: 2.4498 | J3: =C3/1000 -> 832804.441
A4: 2014-05-29 | B4: 16.79 | C4: 843277352 | D4: -1.725 | E4: 12.2009 | F4: 1569572 | G4: -2.633 | H4: 3.5723 | J4: =C4/1000 -> 843277.352
A5: 2014-05-28 | B5: 16.84 | C5: 858082334 | D5: -1.297 | E5: 10.7854 | F5: 1612023 | G5: -1.466 | H5: 11.9547 | J5: 858082.334
A6: 2014-05-27 | B6: 16.62 | C6: 869356585 | D6: -0.021 | E6: 12.3525 | F6: 1636011 | G6: 6.028 | H6: 2.7984 | J6: 869356.585
A7: 2014-05-26 | B7: 16.59 | C7: 869540775 | D7: -0.189 | E7: 18.0805 | F7: 1543005 | G7: -2.809 | H7: 4.8363 | J7: 869540.775
A8: 2014-05-23 | B8: 16.5 | C8: 871190283 | D8: -0.738 | E8: 12.9535 | F8: 1587600 | G8: 9.398 | H8: 7.1491 | J8: 871190.283
A9: 2014-05-22 | B9: 16.39 | C9: 877665950 | D9: -0.705 | E9: 15.4478 | F9: 1451221 | G9: 7.926 | H9: 4.4187 | J9: 877665.95
A10: 2014-05-21 | B10: 16.44 | C10: 883895902 | D10: -0.95 | E10: 9.4769 | F10: 1344649 | G10: -0.339 | H10: 5.5507 | J10: 883895.902
A11: 2014-05-20 | B11: 16.09 | C11: 892374013 | D11: -1.882 | E11: 15.5941 | F11: 1349228 | G11: -6.606 | H11: 6.1863 | J11: 892374.013
A12: 2014-05-19 | B12: 16.4 | C12: 909493832 | D12: -0.364 | E12: 14.85 | F12: 1444668 | G12: -0.677 | H12: 4.4602 | J12: 909493.832
A13: 2014-05-16 | B13: 16.82 | C13: 912818709 | D13: -1.495 | E13: 17.0805 | F13: 1454511 | G13: -1.734 | H13: 4.2204 | J13: 912818.709
A14: 2014-05-15 | B14: 16.73 | C14: 926668604 | D14: 0.702 | E14: 20.784 | F14: 1480171 | G14: 9.882 | H14: 4.1508 | J14: 926668.604
A15: 2014-05-14 | B15: 16.95 | C15: 920209353 | D15: 2.288 | E15: 14.7706 | F15: 1347050 | G15: 0.51 | H15: 2.9177 | J15: 920209.353
A16: 2014-05-13 | B16: 17.26 | C16: 899621867 | D16: -1.702 | E16: 17.4134 | F16: 1340210 | G16: 9.686 | H16: 7.2715 | J16: 899621.867
A17: 2014-05-12 | B17: 17.15 | C17: 915201378 | D17: -0.032 | E17: 15.2637 | F17: 1221856 | G17: -12.8 | H17: 8.055 | J17: 915201.378
A18: 2014-05-09 | B18: 16.91 | C18: 915495367 | D18: -0.311 | E18: 13.6771 | F18: 1401217 | G18: -4.149 | H18: 6.5317 | J18: 915495.367
A19: 2014-05-08 | B19: 16.91 | C19: 918355596 | D19: -0.423 | E19: 20.1505 | F19: 1461864 | G19: 1.753 | H19: 5.2491 | J19: 918355.596
A20: 2014-05-07 | B20: 17 | C20: 922256466 | D20: -0.974 | E20: 15.6876 | F20: 1436679 | G20: -0.912 | H20: 3.7609 | J20: 922256.466
A21: 2014-05-06 | B21: 17.06 | C21: 931324575 | D21: -0.097 | E21: 17.7021 | F21: 1449900 | G21: 7.867 | H21: 4.4542 | J21: 931324.575
A22: 2014-05-05 | B22: 17.14 | C22: 932231051 | D22: 0.211 | E22: 15.4644 | F22: 1344154 | G22: -15.723 | H22: 3.4539 | J22: 932231.051
A23: 2014-04-30 | B23: 17.6 | C23: 930270050 | D23: -0.799 | E23: 12.491 | F23: 1594933 | G23: 1.379 | H23: 4.7303 | J23: 930270.05
A24: 2014-04-29 | B24: 17.57 | C24: 937759622 | D24: -0.942 | E24: 11.2795 | F24: 1573232 | G24: 10.621 | H24: 5.1118 | J24: 937759.622

Sheet 新聞
A1: 000858 五糧液
A2: 年月日 | B2: 序號 | C2: NO | D2: 新聞內容
A3: 2014-05-13 | B3: 1 | C3: 0 | D3: ＊五 糧 液：共同出資設立的四川省宜賓五糧液集團財務 有限公司獲得開業批復 （中財網）
A4: 2014-05-13 | B4: 2 | C4: 0 | D4: ＊五 糧 液：第四屆董事會公告 （中財網）
A5: 2014-05-10 | B5: 1 | C5: 0 | D5: ＊五 糧 液：2013年度股東大會決議 （中財網）
A6: 2014-05-05 | B6: 1 | C6: 0 | D6: ＊五 糧 液：2013年度報告中股東戶數的更正 （中財網）
A7: 2014-04-28 | B7: 1 | C7: 0 | D7: ＊五 糧 液：2014年一季度報告主要財務指標 （中財網）
A8: 2014-04-18 | B8: 1 | C8: 0 | D8: ＊五 糧 液：召開2013年度股東大會的通知 （中財網）
A9: 2014-04-18 | B9: 2 | C9: 0 | D9: ＊五 糧 液：2013年年度報告主要財務指標及分配預案 （中財網）
A10: 2014-03-22 | B10: 1 | C10: 0 | D10: ＊五 糧 液：第四屆董事會公告 （中財網）
A11: 2014-03-10 | B11: 1 | C11: 0 | D11: ＊五 糧 液：2013年度業績快報 （中財網）

Sheet 大宗交易
A1: 000858 五糧液
A2: 交易日 | B2: 序號 | C2: 成交價 | D2: 成交量(萬股) | E2: 大宗/一般交易成交量 | F2: 買入營業部 | G2: 賣出營業部 | H2: 是否為專場
A3: 2014-05-30 | B3: 1 | C3: 16.78 | D3: 14.92 | E3: 3.26 | F3: 機構專用 | G3: 機構專用

Sheet 股權結構
A1: 000858
B2: Data Field | C2: 2012-12-31 | E2: Data Field | F2: 2012-12-31
A3: =MID(B3,4,99) -> 公眾股％ | B3: O1 公眾股％ | C3: 99.99 | E3: O1 公眾股 | F3: 3795542
A4: =MID(B4,4,99) -> 未流通股％ | B4: S0 未流通股％ | C4: 0.01 | E4: O2 可上市法人股 | F4: 0
A5: 可上市法人股％ | B5: O2 可上市法人股％ | C5: 0 | E5: O3 境內上市外資股 | F5: 0
A6: 境內上市外資股% | B6: O3 境內上市外資股% | C6: 0 | E6: O4 境外上市外資股 | F6: 0
A7: 境外上市外資股% | B7: O4 境外上市外資股% | C7: 0 | E7: O5 其它流通股 | F7: 0
A8: 其它流通股％ | B8: O5 其它流通股％ | C8: 0 | E8: O6 回購鎖定股份 | F8: 0
A9: 回購鎖定股份% | B9: O6 回購鎖定股份% | C9: 0 | E9: S0 未流通股 | F9: 425
E10: 總股數 | F10: 3795967
